Workbook

Sheet CoverSheet
A3: Electricity Distribution Business
A4: Price-Quality Regulation 1 April 2025 DPP Reset
A5: MAR waterfall model (MAR 2021 to MAR 2026)
A6: Draft DPP4 determination
A17: Published 17 June 2024 v1

Sheet Description
A1: Description
A2: General description
B3: 1 | C3: This waterfall model produces a waterfall chart for each of non-exempt EDB (some EDBs exluded - see below) to show a breakdown of the drivers of the change in the building blocks allowable revenue (BBAR) from the DPP3 reset to the BBAR for the DPP4 reset. A waterfall chart for each of the included EDBs is on the 'WaterfallCht' sheet. There is also a chart for the totals for the EDBs. There are waterfall charts for only 14 of the 16 non-exempt EDBs. This is because the charts show the difference between the DPP3 financial model and the DPP4 financial model, so an EDB must feature in both of these models to be fully included in this model. Orion, Wellington Electricity and Powerco do not feature in the charts in WfallCht as they have been on CPPs. However the calculations for Wellington have been included even though Wellington was on a CPP in the first year of DPP3. Wellington was included in the DPP3 financial model and this provided the data necessary. Select Wellington Electricity as the chosen EDB at D3 on the Waterfall sheet to view the Wellington MAR waterfall chart. The EDB on which the model is to focus can be selected at Cell D# on the Waterfall sheet.
A5: Overview of model structure
B6: 1 | C6: This model incorporates a copy of much of the 2024 EDB DPP reset financial model. The sheets from 'Inputs' to 'MAR' are the copied sheets.
B7: 2 | C7: The modifications extend the capability of the 2024 model to take into account the IM changes for the depreciation of existing assets. With this modification, the copied sheets can perform the calculations for the DPP4 reset.
B8: 3 | C8: The model inputs include both the set of inputs used for the DPP3 reset and the set used for the DPP4 reset. When all the DPP3 inputs are used, then the results reconcile with the DPP3 financial model. When the DPP4 inputs are used, the results reconcile with the DPP4 financial model.
B9: 4 | C9: For each EDB, the model recalculates the MAR values for 7 different sets of input data, each of these 7 sets being a combination of input data from the DPP3 reset for some inputs and input data from the draft DPP4 reset for the rest of the data. Arranging the sequence of these data combinations allows for the impact of various impacts to be determined for the waterfall charts.
B10: 5 | C10: We discuss the 7 sets of input data combinations below in the context of the waterfall chart for the total for selected EDBs.
A12: Waterfall chart
C13: The chart below is an example of the waterfall charts that this model prepares for non-exempt EDBs. A set of 14 charts is available on the sheet 'WfallCht'.
B39: 6 | C39: The chart starts at its left hand with the brown column, indicating the value of the 2020/21 MAR (ie the MAR for the first year of the DPP3 EDB reset) as 100%. All subsequent MAR values shown in the chart are relative to this value.
B40: 7 | C40: The chart ends at its right hand end with another brown column, this one indicating the DPP4 2025/26 MAR. Between these 2 columns, there are a series of rises and falls, indicating the impact of the various input categories listed along the x axis.
B41: 8 | C41: Consider, for example, the teal coloured rise column above the word 'Opex' on the x axis. The lower edge of this rise indicates the MAR if all the inputs for the parameters listed to the left of this Opex rise are at their DPP4 reset values. The Opex values at the lower edge will be set to their DPP3 reset values for this MAR value, as will all the other parameters to the right of the Opex rise. The MAR represented by the upper edge of the Opex rise will reflect the same input values as the lower edge, except that the DPP4 Opex values will be used. The height of the green rise therefore represents the impact of the change in opex forecasts from the DPP3 reset to the DPP4 reset.
A42: Input categories
C43: The 7 input data categories are listed below, with commentary for some categories. The numbers in the "Mode" column below indicate the mode number used on Row 4 and Column D of the Inputs sheet to manage whether DPP3 reset data or DPP4 reset data is used for the category. Note that there is a Mode 0.
B44: Mode
B45: 0 | C45: 2019 reset model inputs All inputs in Mode Zero are the same as for the DPP3 reset financial model.
B46: 2 | C46: CPI, IC and other Mode 3 uses DPP4 inputs for CPI forecasts, initial conditions, term credit spread differential and disposals. Initial conditions include Opening RAB, Total depreciation, Closing RAB, and various tax parameters. These are all for the base year. Except for disposals, the impact of these inputs is entirely driven by information disclosure data and input methodologies, so there is no impact from Commission decisions taken as part of the 2024 reset.
B47: 5 | C47: WACC Mode 5 uses DPP4 inputs for WACC, cost of debt and leverage.
B48: 6 | C48: Operating expenditure Mode 6 uses DPP4 inputs for opex. Seven rows of inputs are in this category, being the panel of data of Operating expenditure for the 5 years of the regulatory period plus two prior years.
B49: 7 | C49: Capex Seven rows of inputs are in this category, being the panel of data of capex for the 5 years of the regulatory period plus two prior years.
B50: 8 | C50: Exist depreciation Six rows of inputs are in this category, being the panel of existing asset depreciation.
B51: 9 | C51: X (for CPI-X) Significantly negative X values have been assigned to each EDB in the DPP4 financial model, while all X values were nil in DPP3. Mode 9 recognises the non-zero X values in DPP4. A non-zero X can have a significant impact on MAR values, but has no impact on BBAR values.
A53: Inputs sheet & overall operation of this workbook
B54: 1 | C54: The inputs sheet is an adaptation of the Inputs sheet of the DPP3 DPP reset financial model on which this workbook is based. It includes all the inputs to this workbook, together with a significant amount of the processing required to produce the waterfall charts.
B55: 2 | C55: The sheet is divided into a number of panels, the panels being separated by rows and columns that have a green fill colour. The panels are referred to as Panels A, B, C and D, these being the panels with a top left corner at Cell A2, A10, U10 and AM10 respectively. The panels are labelled with cells with a green fill colour.
B56: 3 | C56: Panel A is very simple and sets just: - which EDB is to be focused on in doing the various calculations and producing the EDB's waterfall chart (Cell C6). - the "mode", being a number determining the extent to which the DPP3 versus DPP4 reset inputs are to be used (Cell C5). If the chosen mode at Cell C5 is less than the mode number in Column A for each line of inputs, then the DPP3 model inputs are used for that row of inputs, otherwise the DPP4 inputs are used. A data table is used in the "Waterfall" sheet to step through 7 different values of the mode. This generates the data necessary to draw the waterfall chart for the chosen EDB. The macro for preparing the set of 14 waterfall charts steps through the choice of the 13 EDBs plus the chart for the totals of the 13 EDBs. There is a macro button on the "WfallCht" sheet to prepare the "WfallCht" sheet.
B57: 4 | C57: Panel B consists of most of the used area of the Inputs sheet in the DPP3 model. The links that transfer data from the Inputs sheet to the 'EDB data' sheet and other sheets from the DPP3 model are largely still the same links in this workbook. The key difference in the Inputs sheet in this workbook is that the cells in this panel are no longer values but are instead formulas that reference the data in Panels C and D according to the mode selected.
B58: 5 | C58: Panel C consists of the inputs to the DPP4 financial model, while Panel D consists of the inputs to the DPP3 financial model. The data in Panel C is filled by links to the DPP4 financial model inputs. Panel D is filled with the values of the inputs to the DPP3 financial model.
A59: The "Totals for selected EDBs" chart
B60: 1 | C60: A waterfall chart of the totals for all non-exempt EDBs except those currently on a CPP is prepared by this workbook, and is the last chart on the WfallCht sheet. It is prepared on the Waterfall sheet when 'Totals for selected EDBs' is selected.
B61: 2 | C61: Data for this chart is prepared in the named range "IndustryTotals" on the 'Waterfall' sheet. The values in this table are inserted through the VBA routine "Regenerate", which is the routine that also generates the charts on the WfallCht sheet. The VBA code that inserts the data starts with the VBA comment "Build table on the Waterfall sheet to chart the total for all non-exempts, except Orion, Powerco, Wellington."
B62: 3 | C62: Note the formula at Waterfall!C21 and below. The formula selects the data from the data table to its immediate left except when "Totals for selected EDBs" is selected at D3. When the totals chart is selected, the data for the Column C formulas is taken from the totals column at the right of the "IndustryTotals" range.
A63: Model suite
B64: 1 | C64: Follow the link 'Model map – EDB DPP draft determination – 29 May 2024' on the Commission's EDB 2025-2030 default price-quality path determination web page for a graphical depiction of interconnections between the models and data sources.

Sheet Table of Contents
A1: Table of Contents
B4: Sheet Name | C4: Link
B5: Waterfall | C5: Waterfall calculations and chart for chosen EDB
C6: EDB names and values of MAR 2019/20
C7: Waterfall chart for chosen EDB
B8: WfallCht | C8: Waterfall charts for 14 EDBs
B9: Inputs | C9: Inputs
B10: EDB data | C10: Inputs for the selected distributor
B11: TIMING | C11: Intra-year timing
C12: Inputs
C13: Calculations
C14: Outputs
C15: Check for timing of revenue receipt
B16: RAB | C16: Regulatory asset base
C17: Inputs
C18: Calculations
C19: Outputs
B20: TAX | C20: Tax calculations
C21: Inputs
C22: Calculations
C23: Outputs
B24: BBAR | C24: Building blocks allowable revenue
C25: Inputs
C26: Calculations
C27: Outputs
B28: REV | C28: Revenue growth index
C29: Inputs
C30: Calculations
C31: Outputs
B32: MAR | C32: Maximum allowable revenue
C33: Inputs
C34: Calculations
C35: Outputs
B36: Reconciliation | C36: Reconciliation with financial models outputs
C37: Outputs

Sheet Waterfall
A1: Waterfall calculations and chart for chosen EDB
A3: EDB | D3: Vector Lines
A4: Distributor number | D4: =MATCH(WfallEDB,EDBnames,0) -> 14
A5: Chosen mode | D5: 9
A7: EDB names and values of MAR 2024/25
B9: 1 | C9: 2 | D9: 3 | E9: 4 | F9: 5 | G9: 6 | H9: 7 | I9: 8 | J9: 9 | K9: 10 | L9: 11 | M9: 12 | N9: 13 | O9: 14 | P9: 15 | Q9: 16
B10: Alpine Energy | C10: Aurora Energy | D10: EA Networks | E10: Firstlight Network | F10: Electricity Invercargill | G10: Horizon Energy | H10: Nelson Electricity | I10: Network Tasman | J10: Orion | K10: OtagoNet | L10: The Lines Company | M10: Top Energy | N10: Unison Networks | O10: Vector Lines | P10: Wellington Electricity | Q10: Total for selected EDBs
A11: 2024/25 net allowable revenue | B11: =Inputs!C97 -> 46157.2261 | C11: =Inputs!D97 -> 94510.5517 | D11: =Inputs!E97 -> 35991.47844 | E11: =Inputs!F97 -> 26002.77854 | F11: =Inputs!G97 -> 13264.67223 | G11: =Inputs!H97 -> 25876.90942 | H11: =Inputs!I97 -> 5953.830468 | I11: =Inputs!J97 -> 28625.97737 | J11: =Inputs!K97 -> 171520.792 | K11: =Inputs!L97 -> 27897.55129 | L11: =Inputs!M97 -> 37559.70754 | M11: =Inputs!N97 -> 41138.06828 | N11: =Inputs!O97 -> 108237.5763 | O11: =Inputs!P97 -> 420645.937 | P11: =Inputs!Q97 -> 98917.68429 | Q11: =SUM(B11,D11:O11) -> 988872.5051
A13: Waterfall chart for chosen EDB
A17: 5th year DPP3 MAR mix | B17: =MAR!H55 -> 870005.8989
A18: 1st year DPP3 DPP4 mix | B18: =MAR!D55 -> 579966.0311
A20: Mode | B20: =B18 -> 579966.0311 | C20: =B20 -> 579966.0311 | H20: Base | I20: Fall | J20: Rise | K20: Est 2024/25 to 2025/26
A21: 1 | B21: 388707.0762 | C21: =IF(WfallEDB=$Q$10,$T41,B21) -> 388707.0762 | D21: MAR 2020/21 | E21: 1 | F21: =C21/$C$21 -> 1 | H21: 0 | I21: 0 | J21: 1
A22: 2 | B22: 495829.8912 | C22: =IF(WfallEDB=$Q$10,$T42,B22) -> 495829.8912 | D22: CPI, IC and other | E22: 3 | F22: 1.275587509 | H22: =H21+J21-I22-0.00002%*0 -> 0.99999 | I22: =IF(F22<F21,#REF!-F22+0.00001,0.00001) -> 1e-05 | J22: =IF(F22>=F21,F22-F21+0.00001,0.00001) -> 0.2755975091
A23: 5 | B23: 635461.329 | C23: 635461.329 | D23: WACC | E23: 4 | F23: 1.63480772 | H23: 1.275577509 | I23: =IF(F23<F22,F22-F23+0.00001,0.00001) -> 1e-05 | J23: =IF(F23>=F22,F23-F22+0.00001,0.00001) -> 0.3592302106
A24: 6 | B24: 699066.2714 | C24: 699066.2714 | D24: opex | E24: 6 | F24: 1.798439787 | H24: =H23+J23-I24-0.00002%*0 -> 1.63479772 | I24: =IF(F24<F23,F23-F24+0.00001,0.00001) -> 1e-05 | J24: =IF(F24>=F23,F24-F23+0.00001,0.00001) -> 0.1636420673
A25: 7 | B25: 720289.7906 | C25: 720289.7906 | D25: capex | E25: 8 | F25: 1.853040077 | H25: =H24+J24-I25-0.00002%*0 -> 1.798429787 | I25: =IF(F25<F24,F24-F25+0.00001,0.00001) -> 1e-05 | J25: =IF(F25>=F24,F25-F24+0.00001,0.00001) -> 0.05461029029
A26: 8 | B26: 681580.7339 | C26: 681580.7339 | D26: Exist. Depreciation | E26: 7 | F26: 1.753455946 | H26: 1.753445946 | I26: =IF(F26<F25,F25-F26+0.00001,0.00001) -> 0.09959413175 | J26: =IF(F26>=F25,F26-F25+0.00001,0.00001) -> 1e-05
A27: 9 | B27: 579966.0311 | C27: 579966.0311 | D27: X factor | E27: 8 | F27: =C27/$C$21 -> 1.492038778 | H27: 1.492028778 | I27: =IF(F27<F26,F26-F27+0.00001,0.00001) -> 0.2614271673 | J27: =IF(F27>=F26,F27-F26+0.00001,0.00001) -> 1e-05
B28: =B27 -> 579966.0311 | C28: =IF(WfallEDB=$Q$10,T49,B28) -> 579966.0311 | D28: MAR 2025/26 | E28: =A28 -> 0 | F28: 1.492038778 | H28: 1.492028778 | I28: 1e-05 | J28: 1e-05 | K28: =F28-1 -> 0.4920387782
E29: 0 | F29: =C29/$C$21 -> 0 | H29: =H28 -> 1.492028778 | I29: 1.492048778
G31: Check value, should = 0 | H31: =F27-H28 -> 1e-05
E33: Text for textbox in chart and data for orange dot showing 2025 to 2026 increase
J34: 2025/26 DPP4 net revenue | K34: =C27 -> 579966.0311
J35: Est 2024/25 allowable net revenue | K35: =INDEX(B11:Q11,1,SuppNum) -> 420645.937
J36: MAR increase, 2025/26 MAR from est 2024/25 allowable rev | K36: =(K34-K35)/K35 -> 0.3787510589
K37: ="Forecast net revenue increase, est 2024/25 to 2025/26: " & TEXT(K36,"0%") -> Forecast net revenue increase, est 2024/25 to 2025/26: 38%
B39: Calculation of the 'Total for selected EDBs'
A40: This table is not automatically updated for changes in the MAR. The table can be updated by running the 'Regenerate' macro on the WfallCht. | D40: Named range, Anchor2 | E40: =B10 -> Alpine Energy | F40: Aurora Energy | G40: EA Networks | H40: Firstlight Network | I40: Electricity Invercargill | J40: Horizon Energy | K40: Nelson Electricity | L40: Network Tasman | M40: Orion | N40: OtagoNet | O40: The Lines Company | P40: Top Energy | Q40: Unison Networks | R40: Vector Lines | S40: Wellington Electricity | T40: Total for selected EDBs
D41: MAR 2020/21 | E41: 42652.59408 | F41: 87334.54193 | G41: 33258.71266 | H41: 24028.4361 | I41: 12257.51043 | J41: 23912.12399 | K41: 5501.767235 | L41: 26452.46034 | M41: 158497.5385 | N41: 25779.3423 | O41: 34707.86906 | P41: 38014.53155 | Q41: 100019.2992 | R41: 388707.0762 | S41: 91407.04917 | T41: =SUM(E41,G41:R41) -> 913789.2617
D42: CPI, IC and other | E42: 46918.01451 | F42: 117680.5039 | G42: 40288.1471 | H42: 28409.48776 | I42: 14461.28208 | J42: 27043.22941 | K42: 6376.381041 | L42: 30618.45046 | M42: 199970.6299 | N42: 32962.76449 | O42: 41544.74281 | P42: 46132.67663 | Q42: 124299.5415 | R42: 495829.8912 | S42: 109859.5164 | T42: =SUM(E42,G42:R42) -> 1134855.239
D43: WACC | E43: 57063.85151 | F43: 145908.5662 | G43: 52184.58191 | H43: 35361.94202 | I43: 18132.26991 | J43: 32532.84684 | K43: 7982.596083 | L43: 38177.7377 | M43: 251722.2304 | N43: 42160.22395 | O43: 50772.02403 | P43: 58163.5523 | Q43: 153341.6089 | R43: 635461.329 | S43: 137463.1211 | T43: 1433056.795
D44: opex | E44: 71376.59412 | F44: 155134.1724 | G44: 58612.37718 | H44: 41598.73166 | I44: 20053.07122 | J44: 36468.76563 | K44: 8207.259793 | L44: 44002.23841 | M44: 279144.3453 | N44: 44493.92996 | O44: 54827.04568 | P44: 68251.57743 | Q44: 170563.848 | R44: 699066.2714 | S44: 145881.8361 | T44: 1596666.056
D45: capex | E45: 75589.39809 | F45: 164704.0705 | G45: 57955.74927 | H45: 43918.32331 | I45: 20722.28393 | J45: 38372.39778 | K45: 8539.96689 | L45: 46499.33064 | M45: 293450.7928 | N45: 46610.3899 | O45: 57609.56851 | P45: 70652.64221 | Q45: 178435.1399 | R45: 720289.7906 | S45: 154073.4271 | T45: 1658645.774
D46: Exist deprec | E46: 73664.08874 | F46: 157324.6213 | G46: 56979.50835 | H46: 43701.00918 | I46: 20497.16453 | J46: 36542.01085 | K46: 8077.42635 | L46: 44259.16992 | M46: 280925.4292 | N46: 45920.20933 | O46: 55027.54694 | P46: 68434.02905 | Q46: 175509.7745 | R46: 681580.7339 | S46: 145515.0757 | T46: 1591118.101
D47: X factor | E47: 70249.48191 | F47: 157324.6213 | G47: 45800.94325 | H47: 35732.44829 | I47: 16983.80069 | J47: 34062.78575 | K47: 7045.015267 | L47: 36952.35474 | M47: 219480.2594 | N47: 33640.22449 | O47: 48360.32711 | P47: 52961.70297 | Q47: 136086.1561 | R47: 579966.0311 | S47: 118755.8974 | T47: 1317321.531
D48: MAR 2025/26 | E48: 70249.48191 | F48: 157324.6213 | G48: 45800.94325 | H48: 35732.44829 | I48: 16983.80069 | J48: 34062.78575 | K48: 7045.015267 | L48: 36952.35474 | M48: 219480.2594 | N48: 33640.22449 | O48: 48360.32711 | P48: 52961.70297 | Q48: 136086.1561 | R48: 579966.0311 | S48: 118755.8974 | T48: 1317321.531
T49: =T48 -> 1317321.531

Sheet WfallCht
A1: Waterfall charts for 14 EDBs
AX3: Waterfall Charts
AX4: An aid to interpreting these charts is on the Description sheet, under the headings 'Waterfall Chart' and 'Input categories'.
AX5: The chart "Total for selected EDBs" is for all non-exempt EDBs except those on a CPP at the start of DPP3 or the start of DPP4, ie, except Aurora, Powerco and Wellington Electricity.

Sheet Inputs
A1: Inputs
A2: A | B2: Choice of which EDB to consider and the chosen 'mode'. | W2: =U21 -> 2024-03-31
B3: All input data is entered into this worksheet
B4: Waterfall chart parameters
B5: Chosen mode | C5: =Waterfall!D5 -> 9
B6: EDB selected (cell D3 of 'Waterfall' sheet). | C6: =EDB_Name -> Vector Lines
A10: B | B10: Values for chosen mode | U10: C | V10: Values from DPP4 Financial model | AM10: D | AN10: Values from DPP3 financial model
A11: Mode | B11: Inputs that are the same for all distributors
A12: 2 | B12: Reset timeline | C12: Value | D12: =IF($C$5<$A12,AN12,V12) -> 2023/24 | E12: 2024/25 | F12: 2025/26 | G12: 2026/27 | H12: 2027/28 | I12: 2028/29 | J12: 2029/30 | V12: 2023/24 | W12: =LEFT(V12,4)+1 & "/" & RIGHT(V12,2)+1 -> 2024/25 | X12: =LEFT(W12,4)+1 & "/" & RIGHT(W12,2)+1 -> 2025/26 | Y12: =LEFT(X12,4)+1 & "/" & RIGHT(X12,2)+1 -> 2026/27 | Z12: =LEFT(Y12,4)+1 & "/" & RIGHT(Y12,2)+1 -> 2027/28 | AA12: =LEFT(Z12,4)+1 & "/" & RIGHT(Z12,2)+1 -> 2028/29 | AB12: =LEFT(AA12,4)+1 & "/" & RIGHT(AA12,2)+1 -> 2029/30 | AN12: 2018/19 | AO12: =LEFT(AN12,4)+1 & "/" & RIGHT(AN12,2)+1 -> 2019/20 | AP12: =LEFT(AO12,4)+1 & "/" & RIGHT(AO12,2)+1 -> 2020/21 | AQ12: 2021/22 | AR12: 2022/23 | AS12: 2023/24 | AT12: 2024/25
A13: 1 | B13: Year in modelling period | D13: 1 | E13: 2 | F13: 3 | G13: 4 | H13: 5 | I13: 6 | J13: 7 | V13: 1 | W13: 2 | X13: 3 | Y13: 4 | Z13: 5 | AA13: 6 | AB13: 7 | AN13: 1 | AO13: 2 | AP13: 3 | AQ13: 4 | AR13: 5 | AS13: 6 | AT13: 7
A14: 1 | B14: Year in regulatory period | F14: 1 | G14: 2 | H14: 3 | I14: 4 | J14: 5 | X14: 1 | Y14: 2 | Z14: 3 | AA14: 4 | AB14: 5 | AP14: 1 | AQ14: 2 | AR14: 3 | AS14: 4 | AT14: 5
A15: 3 | B15: Forecast changes in CPI used for revaluations | D15: =IF($C$5<$A15,AN15,V15) -> 0.04022988506 | E15: 0.026 | F15: 0.02 | G15: 0.02 | H15: 0.02 | I15: 0.02 | J15: 0.02 | V15: 0.04022988506 | W15: 0.026 | X15: 0.02 | Y15: 0.02 | Z15: 0.02 | AA15: 0.02 | AB15: 0.02 | AN15: 0.01483679525 | AO15: 0.017 | AP15: 0.019 | AQ15: 0.02 | AR15: 0.02 | AS15: 0.02 | AT15: 0.02
A16: 3 | B16: Forecast changes in the CPI element of the price path | F16: =IF($C$5<$A16,AP16,X16) -> 0.021237207 | G16: =IF($C$5<$A16,AQ16,Y16) -> 0.02 | H16: =IF($C$5<$A16,AR16,Z16) -> 0.02 | I16: =IF($C$5<$A16,AS16,AA16) -> 0.02 | J16: =IF($C$5<$A16,AT16,AB16) -> 0.02 | X16: 0.021237207 | Y16: 0.02 | Z16: 0.02 | AA16: 0.02 | AB16: 0.02 | AP16: 0.01750437898 | AQ16: 0.01950211459 | AR16: 0.02024805898 | AS16: 0.02 | AT16: 0.02
A17: 1 | B17: Company tax rate | D17: 0.28 | E17: 0.28 | F17: 0.28 | G17: 0.28 | H17: 0.28 | I17: 0.28 | J17: 0.28 | V17: 0.28 | W17: 0.28 | X17: 0.28 | Y17: 0.28 | Z17: 0.28 | AA17: 0.28 | AB17: 0.28 | AN17: 0.28 | AO17: 0.28 | AP17: 0.28 | AQ17: 0.28 | AR17: 0.28 | AS17: 0.28 | AT17: 0.28
A18: 1 | B18: Days in a year | C18: =IF($C$5<$A18,AM18,U18) -> 365 | N18: Working area | U18: 365 | AM18: 365
A19: 1 | B19: Days from mid-year to year-end | C19: 182 | N19: =D12 -> 2023/24 | U19: 182 | AM19: 182
A20: 1 | B20: Days from revenue date to year-end | C20: 148 | N20: =E12 -> 2024/25 | U20: 148 | AM20: 148
A21: 0 | B21: Last day of year 1 of the DPP period | C21: 2024-03-31 | N21: =F12 -> 2025/26 | U21: 2024-03-31 | AM21: 2021-03-31
A22: 5 | B22: Vanilla WACC (67th percentile) | C22: 0.0737 | N22: =G12 -> 2026/27 | U22: 0.0737 | AM22: 0.0457
A23: 5 | B23: Cost of debt | C23: 0.0612 | N23: =H12 -> 2027/28 | U23: 0.0612 | AM23: 0.0292
A24: 5 | B24: Leverage | C24: 0.41 | N24: =I12 -> 2028/29 | U24: 0.41 | AM24: 0.42
A25: 0 | B25: Years of remaining life for newly commissioned assets | C25: 44 | N25: =J12 -> 2029/30 | U25: 44 | AM25: 44
A26: 0 | B26: Industry-wide X factor | C26: 0 | U26: 0 | AM26: 0
B27: Inputs that are specific to individual distributors
B28: Name | C28: Alpine Energy | D28: Aurora Energy | E28: EA Networks | F28: Firstlight Network | G28: Electricity Invercargill | H28: Horizon Energy | I28: Nelson Electricity | J28: Network Tasman | K28: Orion | L28: OtagoNet | M28: The Lines Company | N28: Top Energy | O28: Unison Networks | P28: Vector Lines | Q28: Wellington Electricity | U28: Alpine Energy | V28: Aurora Energy | W28: EA Networks | X28: Eastland Network | Y28: Electricity Invercargill | Z28: Horizon Energy | AA28: Nelson Electricity | AB28: Network Tasman | AC28: Orion NZ | AD28: OtagoNet | AE28: The Lines Company | AF28: Top Energy | AG28: Unison Networks | AH28: Vector Lines | AI28: Wellington Electricity | AM28: Alpine Energy | AN28: Aurora Energy | AO28: EA Networks | AP28: Eastland Network | AQ28: Electricity Invercargill | AR28: Horizon Energy | AS28: Nelson Electricity | AT28: Network Tasman | AU28: Orion | AV28: OtagoNet | AW28: The Lines Company | AX28: Top Energy | AY28: Unison Networks | AZ28: Vector Lines | BA28: Wellington Electricity
B29: Distributor number | C29: 1 | D29: 2 | E29: 3 | F29: 4 | G29: 5 | H29: 6 | I29: 7 | J29: 8 | K29: 9 | L29: 10 | M29: 11 | N29: 12 | O29: 13 | P29: 14 | Q29: 15 | U29: 1 | V29: 2 | W29: 3 | X29: 4 | Y29: 5 | Z29: 6 | AA29: 7 | AB29: 8 | AC29: 9 | AD29: 10 | AE29: 11 | AF29: 12 | AG29: 13 | AH29: 14 | AI29: 15 | AM29: 1 | AN29: 2 | AO29: 4 | AP29: 5 | AQ29: 6 | AR29: 7 | AS29: 8 | AT29: 9 | AU29: 10 | AV29: 11 | AW29: 13 | AX29: 14 | AY29: 15 | AZ29: 16 | BA29: 17
B30: Initial conditions
A31: 2 | B31: Opening RAB | C31: =IF($C$5<$A31,AM31,U31) -> 293278.3873 | D31: =IF($C$5<$A31,AN31,V31) -> 736087.75 | E31: =IF($C$5<$A31,AO31,W31) -> 343290 | F31: =IF($C$5<$A31,AP31,X31) -> 209446.3498 | G31: =IF($C$5<$A31,AQ31,Y31) -> 107300.1332 | H31: =IF($C$5<$A31,AR31,Z31) -> 161215.809 | I31: =IF($C$5<$A31,AS31,AA31) -> 49284.29244 | J31: =IF($C$5<$A31,AT31,AB31) -> 209789 | K31: =IF($C$5<$A31,AU31,AC31) -> 1450079 | L31: =IF($C$5<$A31,AV31,AD31) -> 263617.4412 | M31: =IF($C$5<$A31,AW31,AE31) -> 263264.1674 | N31: =IF($C$5<$A31,AX31,AF31) -> 339120.8623 | O31: =IF($C$5<$A31,AY31,AG31) -> 805807.4552 | P31: =IF($C$5<$A31,AZ31,AH31) -> 3891833.06 | Q31: =IF($C$5<$A31,BA31,AI31) -> 803430.1662 | U31: 293278.3873 | V31: 736087.75 | W31: 343290 | X31: 209446.3498 | Y31: 107300.1332 | Z31: 161215.809 | AA31: 49284.29244 | AB31: 209789 | AC31: 1450079 | AD31: 263617.4412 | AE31: 263264.1674 | AF31: 339120.8623 | AG31: 805807.4552 | AH31: 3891833.06 | AI31: 803430.1662 | AM31: 199621 | AN31: 394155.2034 | AO31: 259359.001 | AP31: 154613.2058 | AQ31: 84071.69551 | AR31: 124949.9691 | AS31: 41110.98197 | AT31: 165522 | AU31: 1051194 | AV31: 186531.164 | AW31: 188818.5386 | AX31: 251488.161 | AY31: 586195 | AZ31: 2951716 | BA31: 611855.0815
A32: =A31 -> 2 | B32: Lost assets | C32: 0 | D32: 0 | E32: 0 | F32: 0 | G32: 0 | H32: 0 | I32: 0 | J32: 0 | K32: 0 | L32: 0 | M32: 0 | N32: 0 | O32: 0 | P32: 0 | Q32: 0 | U32: 0 | V32: 0 | W32: 0 | X32: 0 | Y32: 0 | Z32: 0 | AA32: 0 | AB32: 0 | AC32: 0 | AD32: 0 | AE32: 0 | AF32: 0 | AG32: 0 | AH32: 0 | AI32: 0 | AM32: 0 | AN32: 0 | AO32: 0 | AP32: 0 | AQ32: 0 | AR32: 0 | AS32: 0 | AT32: 0 | AU32: 0 | AV32: 0 | AW32: 0 | AX32: 0 | AY32: 0 | AZ32: 0 | BA32: 0
A33: =A31 -> 2 | B33: Found assets | C33: 0 | D33: 0 | E33: 0 | F33: 0 | G33: 0 | H33: 0 | I33: 0 | J33: 0 | K33: 0 | L33: 0 | M33: 0 | N33: 0 | O33: 0 | P33: 0 | Q33: 0 | U33: 0 | V33: 0 | W33: 0 | X33: 0 | Y33: 0 | Z33: 0 | AA33: 0 | AB33: 0 | AC33: 0 | AD33: 0 | AE33: 0 | AF33: 0 | AG33: 0 | AH33: 0 | AI33: 0 | AM33: 0 | AN33: 0 | AO33: 0 | AP33: 0 | AQ33: 0 | AR33: 0 | AS33: 0 | AT33: 0 | AU33: 0 | AV33: 0 | AW33: 0 | AX33: 0 | AY33: 0 | AZ33: 0 | BA33: 0
A34: =A31 -> 2 | B34: Total depreciation | C34: 12693.75759 | D34: 30629.41083 | E34: 12821.53743 | F34: 8225.453842 | G34: 4160.583064 | H34: 8032.498117 | I34: 1879.452627 | J34: 8180.765047 | K34: 58147.54478 | L34: 11064.78734 | M34: 12250.68848 | N34: 13170.49862 | O34: 37799.47285 | P34: 162364.3973 | Q34: 34134.6021 | U34: 12693.75759 | V34: 30629.41083 | W34: 12821.53743 | X34: 8225.453842 | Y34: 4160.583064 | Z34: 8032.498117 | AA34: 1879.452627 | AB34: 8180.765047 | AC34: 58147.54478 | AD34: 11064.78734 | AE34: 12250.68848 | AF34: 13170.49862 | AG34: 37799.47285 | AH34: 162364.3973 | AI34: 34134.6021 | AM34: 12793.13117 | AN34: 15058.02417 | AO34: 9529.623038 | AP34: 6088.948957 | AQ34: 3119.771454 | AR34: 6456.22173 | AS34: 1446.55623 | AT34: 6807 | AU34: 40615.81705 | AV34: 7711.915713 | AW34: 8412.100597 | AX34: 9155.47597 | AY34: 27555.254 | AZ34: 108729 | BA34: 26323.29182
A35: =A31 -> 2 | B35: Revaluations | C35: 0 | D35: 0 | E35: 0 | F35: 0 | G35: 0 | H35: 0 | I35: 0 | J35: 0 | K35: 0 | L35: 0 | M35: 0 | N35: 0 | O35: 0 | P35: 0 | Q35: 0
A36: =A31 -> 2 | B36: Closing RAB | C36: 315068.2411 | D36: 821467.0673 | E36: 357823.1542 | F36: 224592.4431 | G36: 113375.4079 | H36: 168815.9364 | I36: 51273.85636 | J36: 223905.26 | K36: 1584734.556 | L36: 283480.0334 | M36: 280879.6658 | N36: 360141.8138 | O36: 890605.7422 | P36: 4227215.585 | Q36: 855391.8123 | U36: 315068.2411 | V36: 821467.0673 | W36: 357823.1542 | X36: 224592.4431 | Y36: 113375.4079 | Z36: 168815.9364 | AA36: 51273.85636 | AB36: 223905.26 | AC36: 1584734.556 | AD36: 283480.0334 | AE36: 280879.6658 | AF36: 360141.8138 | AG36: 890605.7422 | AH36: 4227215.585 | AI36: 855391.8123 | AM36: 201494.5438 | AN36: 447072.1812 | AO36: 268447.1646 | AP36: 161677.5522 | AQ36: 86604.99681 | AR36: 133085.9 | AS36: 41933.72916 | AT36: 165472 | AU36: 1088531.372 | AV36: 194442.0895 | AW36: 206316.4374 | AX36: 261426.1465 | AY36: 620045.33 | AZ36: 3075471 | BA36: 629322.9926
A37: =A32 -> 2 | B37: Opening RAB excluding revaluations | C37: 219936.6556 | D37: 534479 | E37: 261418 | F37: 155766.2416 | G37: 80334.47287 | H37: 122359.065 | I37: 37296 | J37: 152974 | K37: 1056721.474 | L37: 196077.2392 | M37: 178652.3485 | N37: 254085.0629 | O37: 591796.2242 | P37: 2910221.549 | Q37: 592247.5068 | U37: 219936.6556 | V37: 534479 | W37: 261418 | X37: 155766.2416 | Y37: 80334.47287 | Z37: 122359.065 | AA37: 37296 | AB37: 152974 | AC37: 1056721.474 | AD37: 196077.2392 | AE37: 178652.3485 | AF37: 254085.0629 | AG37: 591796.2242 | AH37: 2910221.549 | AI37: 592247.5068 | AM37: 170446.47 | AN37: 361569.5442 | AO37: 240111.3019 | AP37: 141779.8794 | AQ37: 77250.2 | AR37: 114466.5638 | AS37: 37930 | AT37: 150203 | AU37: 965046.964 | AV37: 173737 | AW37: 166614.8011 | AX37: 224217.6316 | AY37: 536379 | AZ37: 2695210 | BA37: 556622.5202
A38: 2 | B38: Adjusted depreciation | C38: 9519.360141 | D38: 22240.25175 | E38: 9763.700286 | F38: 6117.308949 | G38: 3114.984458 | H38: 6096.480026 | I38: 1422.280035 | J38: 5965.252479 | K38: 42374.07702 | L38: 8229.929488 | M38: 8313.376978 | N38: 9867.947811 | O38: 27760.4596 | P38: 121412.291 | Q38: 25162.27775 | U38: 9519.360141 | V38: 22240.25175 | W38: 9763.700286 | X38: 6117.308949 | Y38: 3114.984458 | Z38: 6096.480026 | AA38: 1422.280035 | AB38: 5965.252479 | AC38: 42374.07702 | AD38: 8229.929488 | AE38: 8313.376978 | AF38: 9867.947811 | AG38: 27760.4596 | AH38: 121412.291 | AI38: 25162.27775 | AM38: 10635.43092 | AN38: 13630.79869 | AO38: 8731.374143 | AP38: 5287.94844 | AQ38: 2844.854 | AR38: 5022.32702 | AS38: 1354 | AT38: 6290 | AU38: 36341.389 | AV38: 7161 | AW38: 7730.983111 | AX38: 7999.217391 | AY38: 25169 | AZ38: 99210 | BA38: 23190.27941
A39: 2 | B39: Tax depreciation | C39: 10414.87752 | D39: 32998.27969 | E39: 11422.08982 | F39: 13368.85398 | G39: 3755.999119 | H39: 5238.135611 | I39: 1286.86666 | J39: 5747.54199 | K39: 41048.52927 | L39: 13365.9561 | M39: 5924.709057 | N39: 11669.7045 | O39: 31898.7899 | P39: 131068.3865 | Q39: 28661.80921 | U39: 10414.87752 | V39: 32998.27969 | W39: 11422.08982 | X39: 13368.85398 | Y39: 3755.999119 | Z39: 5238.135611 | AA39: 1286.86666 | AB39: 5747.54199 | AC39: 41048.52927 | AD39: 13365.9561 | AE39: 5924.709057 | AF39: 11669.7045 | AG39: 31898.7899 | AH39: 131068.3865 | AI39: 28661.80921 | AM39: 14782.75991 | AN39: 21650 | AO39: 11910.71094 | AP39: 6271.29534 | AQ39: 3313.98 | AR39: 5404.500609 | AS39: 1297 | AT39: 5114 | AU39: 32004.275 | AV39: 15388 | AW39: 4330.035972 | AX39: 11576.76816 | AY39: 30035 | AZ39: 103486 | BA39: 28793.11796
A40: 2 | B40: Opening regulatory tax asset value | C40: 119931.2209 | D40: 368896 | E40: 143083 | F40: 62125.58992 | G40: 43428.36812 | H40: 57759.61041 | I40: 17344 | J40: 69587 | K40: 467814.211 | L40: 83204 | M40: 62319.85838 | N40: 148387.7992 | O40: 339291 | P40: 1260992 | Q40: 357884.3424 | U40: 119931.2209 | V40: 368896 | W40: 143083 | X40: 62125.58992 | Y40: 43428.36812 | Z40: 57759.61041 | AA40: 17344 | AB40: 69587 | AC40: 467814.211 | AD40: 83204 | AE40: 62319.85838 | AF40: 148387.7992 | AG40: 339291 | AH40: 1260992 | AI40: 357884.3424 | AM40: 122940.0287 | AN40: 222185.9147 | AO40: 134591.6309 | AP40: 70250.53571 | AQ40: 41317.03 | AR40: 51284.963 | AS40: 18165 | AT40: 63134 | AU40: 400019.6316 | AV40: 95268 | AW40: 45756 | AX40: 136251.1719 | AY40: 313784 | AZ40: 1224826 | BA40: 351370.7044
A41: 2 | B41: Amortisation of initial differences in asset values | C41: 2717.875326 | D41: 4928.705567 | E41: 2076.126667 | F41: 1900.57606 | G41: 1248.6 | H41: 4218.944535 | I41: 693.0588235 | J41: 3237.518115 | K41: 15209.27734 | L41: 1330.055556 | M41: 4085.811966 | N41: 3399.105263 | O41: 5670.125 | P41: 31571.18519 | Q41: 7150.784348 | U41: 2717.875326 | V41: 4928.705567 | W41: 2076.126667 | X41: 1900.57606 | Y41: 1248.6 | Z41: 4218.944535 | AA41: 693.0588235 | AB41: 3237.518115 | AC41: 15209.27734 | AD41: 1330.055556 | AE41: 4085.811966 | AF41: 3399.105263 | AG41: 5670.125 | AH41: 31571.18519 | AI41: 7150.784348 | AM41: 2756.174785 | AN41: 4989.952406 | AO41: 2142.610349 | AP41: 1900.57606 | AQ41: 1268.368421 | AR41: 4218.944535 | AS41: 693.05 | AT41: 3239.163154 | AU41: 15323.20205 | AV41: 1343.545455 | AW41: 4085.269864 | AX41: 3399.105263 | AY41: 5670.1 | AZ41: 34300.67742 | BA41: 7150.784348
A42: 2 | B42: Term credit spread differential allowance | C42: 0 | D42: 0 | E42: 0 | F42: 0 | G42: 0 | H42: 0 | I42: 0 | J42: 0 | K42: 954.4345915 | L42: 0 | M42: 0 | N42: 0 | O42: 508.2273564 | P42: 3388.538619 | Q42: 385.1356965 | U42: 0 | V42: 0 | W42: 0 | X42: 0 | Y42: 0 | Z42: 0 | AA42: 0 | AB42: 0 | AC42: 954.4345915 | AD42: 0 | AE42: 0 | AF42: 0 | AG42: 508.2273564 | AH42: 3388.538619 | AI42: 385.1356965 | AM42: 0 | AN42: 0 | AO42: 0 | AP42: 0 | AQ42: 0 | AR42: 0 | AS42: 0 | AT42: 0 | AU42: 788.4552941 | AV42: 0 | AW42: 0 | AX42: 0 | AY42: 440.1887319 | AZ42: 3983.687394 | BA42: 362.4615546
A43: 2 | B43: Opening deferred tax balance | C43: -19181.15857 | D43: -35819.99756 | E43: -17784.63547 | F43: -14545.01135 | G43: -5853.712985 | H43: -1263.341735 | I43: -2451.992941 | J43: -4678.36345 | K43: -68436.98862 | L43: -24227.69556 | M43: -21000.78068 | N43: -19101.4895 | O43: -45257.81919 | P43: -147224.2519 | Q43: -49543.52003 | U43: -19181.15857 | V43: -35819.99756 | W43: -17784.63547 | X43: -14545.01135 | Y43: -5853.712985 | Z43: -1263.341735 | AA43: -2451.992941 | AB43: -4678.36345 | AC43: -68436.98862 | AD43: -24227.69556 | AE43: -21000.78068 | AF43: -19101.4895 | AG43: -45257.81919 | AH43: -147224.2519 | AI43: -49543.52003 | AM43: -6546.424746 | AN43: -18008.43966 | AO43: -12614.86729 | AP43: -7364 | AQ43: -3433.962507 | AR43: 0 | AS43: -1441 | AT43: -1612.351921 | AU43: -43149.14864 | AV43: -12352 | AW43: -12008 | AX43: -10180.72612 | AY43: -29786 | AZ43: -83664 | BA43: -33852.90099
A44: 1 | B44: Adjustment factor (for accelerated depreciation) | C44: 1 | D44: 1 | E44: 1 | F44: 1 | G44: 1 | H44: 1 | I44: 1 | J44: 1 | K44: 1 | L44: 1 | M44: 1 | N44: 1 | O44: 1 | P44: 1 | Q44: 1 | U44: 1 | V44: 1 | W44: 1 | X44: 1 | Y44: 1 | Z44: 1 | AA44: 1 | AB44: 1 | AC44: 1 | AD44: 1 | AE44: 1 | AF44: 1 | AG44: 1 | AH44: 1 | AI44: 1 | AM44: 1 | AN44: 1 | AO44: 1 | AP44: 1 | AQ44: 1 | AR44: 1 | AS44: 1 | AT44: 1 | AU44: 1 | AV44: 1 | AW44: 1 | AX44: 1 | AY44: 1 | AZ44: 1 | BA44: 1
A45: 1 | B45: Additional allowance in 1 April 2015 PV terms | C45: 0 | D45: 0 | E45: 0 | F45: 0 | G45: 0 | H45: 0 | I45: 0 | J45: 0 | K45: 0 | L45: 0 | M45: 0 | N45: 0 | O45: 0 | P45: 0 | Q45: 0 | U45: 0 | V45: 0 | W45: 0 | X45: 0 | Y45: 0 | Z45: 0 | AA45: 0 | AB45: 0 | AC45: 0 | AD45: 0 | AE45: 0 | AF45: 0 | AG45: 0 | AH45: 0 | AI45: 0 | AM45: 0 | AN45: 0 | AO45: 0 | AP45: 0 | AQ45: 0 | AR45: 0 | AS45: 0 | AT45: 0 | AU45: 0 | AV45: 0 | AW45: 0 | AX45: 0 | AY45: 0 | AZ45: 0 | BA45: 0
A46: 9 | B46: Alternative X factor | C46: -0.025 | D46: 0 | E46: -0.115 | F46: -0.106 | G46: -0.099 | H46: -0.037 | I46: -0.072 | J46: -0.095 | K46: -0.13 | L46: -0.164 | M46: -0.068 | N46: -0.135 | O46: -0.134 | P46: -0.085 | Q46: -0.107 | U46: -0.025 | V46: 0 | W46: -0.115 | X46: -0.106 | Y46: -0.099 | Z46: -0.037 | AA46: -0.072 | AB46: -0.095 | AC46: -0.13 | AD46: -0.164 | AE46: -0.068 | AF46: -0.135 | AG46: -0.134 | AH46: -0.085 | AI46: -0.107 | AM46: 0 | AN46: 0 | AO46: 0 | AP46: 0 | AQ46: 0 | AR46: 0 | AS46: 0 | AT46: 0 | AU46: 0 | AV46: 0 | AW46: 0 | AX46: 0 | AY46: 0 | AZ46: 0 | BA46: 0
B47: Operating expenditure
A48: 6 | B48: ="Operating expenditure, " & N19 -> Operating expenditure, 2023/24 | C48: =IF($C$5<$A48,AM48,U48) -> 0 | D48: 0 | E48: =IF($C$5<$A48,AO48,W48) -> 0 | F48: 0 | G48: 0 | H48: 0 | I48: 0 | J48: 0 | K48: 0 | L48: 0 | M48: 0 | N48: 0 | O48: 0 | P48: 0 | Q48: 0
A49: =$A$48 -> 6 | B49: Operating expenditure, 2024/25 | C49: 0 | D49: 0 | E49: 0 | F49: 0 | G49: 0 | H49: 0 | I49: 0 | J49: 0 | K49: 0 | L49: 0 | M49: 0 | N49: 0 | O49: 0 | P49: 0 | Q49: 0
A50: 6 | B50: Operating expenditure, 2025/26 | C50: 33109.80637 | D50: 54003.72022 | E50: 18575.39759 | F50: 16688.58964 | G50: 6964.534579 | H50: 13989.58157 | I50: 2463.834731 | J50: 16677.2426 | K50: 89409.40383 | L50: 11172.80697 | M50: 18752.2583 | N50: 25988.81049 | O50: 57176.20408 | P50: 188309.0845 | Q50: 43660.9116 | U50: 33109.80637 | V50: 54003.72022 | W50: 18575.39759 | X50: 16688.58964 | Y50: 6964.534579 | Z50: 13989.58157 | AA50: 2463.834731 | AB50: 16677.2426 | AC50: 89409.40383 | AD50: 11172.80697 | AE50: 18752.2583 | AF50: 25988.81049 | AG50: 57176.20408 | AH50: 188309.0845 | AI50: 43660.9116 | AM50: 19420.27295 | AN50: 44723.36092 | AO50: 11823.138 | AP50: 10615.39048 | AQ50: 5180.711808 | AR50: 9885.612004 | AS50: 2246.837417 | AT50: 11157.71197 | AU50: 64153.5484 | AV50: 9162.923911 | AW50: 14911.90269 | AX50: 16021.47849 | AY50: 41582.38717 | AZ50: 127351.1379 | BA50: 35667.65735
A51: =$A$48 -> 6 | B51: Operating expenditure, 2026/27 | C51: 34209.21763 | D51: 55784.02505 | E51: 18890.85109 | F51: 17141.23858 | G51: 7203.231703 | H51: 13973.05308 | I51: 2540.06505 | J51: 17262.82216 | K51: 93002.09178 | L51: 11655.92731 | M51: 19299.31952 | N51: 26687.6431 | O51: 60285.55946 | P51: 195504.4239 | Q51: 45101.75242 | U51: 34209.21763 | V51: 55784.02505 | W51: 18890.85109 | X51: 17141.23858 | Y51: 7203.231703 | Z51: 13973.05308 | AA51: 2540.06505 | AB51: 17262.82216 | AC51: 93002.09178 | AD51: 11655.92731 | AE51: 19299.31952 | AF51: 26687.6431 | AG51: 60285.55946 | AH51: 195504.4239 | AI51: 45101.75242 | AM51: 20012.12028 | AN51: 46248.5301 | AO51: 12215.64195 | AP51: 10898.08181 | AQ51: 5310.586635 | AR51: 10170.6927 | AS51: 2316.975648 | AT51: 11513.0795 | AU51: 66487.65443 | AV51: 9425.276484 | AW51: 15303.18716 | AX51: 16537.34445 | AY51: 42904.14303 | AZ51: 132448.6848 | BA51: 36792.11547
A52: =$A$48 -> 6 | B52: Operating expenditure, 2027/28 | C52: 35348.59688 | D52: 57627.4611 | E52: 19215.01287 | F52: 17607.36155 | G52: 7426.973891 | H52: 14422.93562 | I52: 2618.536586 | J52: 17870.16633 | K52: 96809.23991 | L52: 12100.48402 | M52: 19863.49532 | N52: 27408.05422 | O52: 61617.72314 | P52: 202992.1792 | Q52: 46595.18019 | U52: 35348.59688 | V52: 57627.4611 | W52: 19215.01287 | X52: 17607.36155 | Y52: 7426.973891 | Z52: 14422.93562 | AA52: 2618.536586 | AB52: 17870.16633 | AC52: 96809.23991 | AD52: 12100.48402 | AE52: 19863.49532 | AF52: 27408.05422 | AG52: 61617.72314 | AH52: 202992.1792 | AI52: 46595.18019 | AM52: 20629.43209 | AN52: 48129.31552 | AO52: 12625.15911 | AP52: 11192.33198 | AQ52: 5445.680406 | AR52: 10485.31936 | AS52: 2390.165825 | AT52: 11880.37654 | AU52: 68931.50553 | AV52: 9698.649757 | AW52: 15708.68538 | AX52: 17051.66159 | AY52: 44325.32603 | AZ52: 137800.8232 | BA52: 37965.37991
A53: =$A$48 -> 6 | B53: Operating expenditure, 2028/29 | C53: 36583.3691 | D53: 59624.23378 | E53: 19576.96985 | F53: 18114.11716 | G53: 7669.792991 | H53: 14910.8433 | I53: 2703.333701 | J53: 18527.4749 | K53: 101736.8734 | L53: 12581.84262 | M53: 20475.55313 | N53: 28192.2567 | O53: 64392.41837 | P53: 211094.3902 | Q53: 48214.20295 | U53: 36583.3691 | V53: 59624.23378 | W53: 19576.96985 | X53: 18114.11716 | Y53: 7669.792991 | Z53: 14910.8433 | AA53: 2703.333701 | AB53: 18527.4749 | AC53: 101736.8734 | AD53: 12581.84262 | AE53: 20475.55313 | AF53: 28192.2567 | AG53: 64392.41837 | AH53: 211094.3902 | AI53: 48214.20295 | AM53: 21237.10451 | AN53: 50194.34228 | AO53: 13063.73347 | AP53: 11497.23373 | AQ53: 5585.037299 | AR53: 10832.65929 | AS53: 2464.998216 | AT53: 12252.61888 | AU53: 71320.63802 | AV53: 9957.784343 | AW53: 16108.54615 | AX53: 17569.3518 | AY53: 45716.09645 | AZ53: 142973.171 | BA53: 39168.44702
A54: =$A$48 -> 6 | B54: Operating expenditure, 2029/30 | C54: 37874.07979 | D54: 61709.833 | E54: 19954.02304 | F54: 18641.28754 | G54: 7923.312077 | H54: 15483.49021 | I54: 2791.487688 | J54: 19214.98348 | K54: 105826.0539 | L54: 13086.8594 | M54: 21112.84906 | N54: 29008.76899 | O54: 67406.57597 | P54: 219593.7856 | Q54: 49906.77897 | U54: 37874.07979 | V54: 61709.833 | W54: 19954.02304 | X54: 18641.28754 | Y54: 7923.312077 | Z54: 15483.49021 | AA54: 2791.487688 | AB54: 19214.98348 | AC54: 105826.0539 | AD54: 13086.8594 | AE54: 21112.84906 | AF54: 29008.76899 | AG54: 67406.57597 | AH54: 219593.7856 | AI54: 49906.77897 | AM54: 21815.91739 | AN54: 51957.91286 | AO54: 13485.87562 | AP54: 11783.55828 | AQ54: 5715.710443 | AR54: 11113.44999 | AS54: 2536.716857 | AT54: 12609.49819 | AU54: 73634.73386 | AV54: 10201.98055 | AW54: 16483.22902 | AX54: 18063.17601 | AY54: 47028.87762 | AZ54: 148015.8896 | BA54: 40320.61647
B55: Constant price revenue growth | U55: Zeroed
A56: 4 | B56: ="Constant price revenue growth, " & N19 -> Constant price revenue growth, 2023/24 | C56: =IF($C$5<$A56,AM56,U56) -> 0 | D56: 0 | E56: =IF($C$5<$A56,AO56,W56) -> 0 | F56: 0 | G56: 0 | H56: 0 | I56: 0 | J56: 0 | K56: 0 | L56: 0 | M56: 0 | N56: 0 | O56: 0 | P56: 0 | Q56: 0 | U56: 0 | V56: 0 | W56: 0 | X56: 0 | Y56: 0 | Z56: 0 | AA56: 0 | AB56: 0 | AC56: 0 | AD56: 0 | AE56: 0 | AF56: 0 | AG56: 0 | AH56: 0 | AI56: 0 | AM56: 0 | AN56: 0 | AO56: 0 | AP56: 0 | AQ56: 0 | AR56: 0 | AS56: 0 | AT56: 0 | AU56: 0 | AV56: 0 | AW56: 0 | AX56: 0 | AY56: 0 | AZ56: 0 | BA56: 0
A57: =$A$56 -> 4 | B57: Constant price revenue growth, 2024/25 | C57: 0 | D57: 0 | E57: 0 | F57: 0 | G57: 0 | H57: 0 | I57: 0 | J57: 0 | K57: 0 | L57: 0 | M57: 0 | N57: 0 | O57: 0 | P57: 0 | Q57: 0 | U57: 0 | V57: 0 | W57: 0 | X57: 0 | Y57: 0 | Z57: 0 | AA57: 0 | AB57: 0 | AC57: 0 | AD57: 0 | AE57: 0 | AF57: 0 | AG57: 0 | AH57: 0 | AI57: 0 | AM57: 0 | AN57: 0 | AO57: 0 | AP57: 0 | AQ57: 0 | AR57: 0 | AS57: 0 | AT57: 0 | AU57: 0 | AV57: 0 | AW57: 0 | AX57: 0 | AY57: 0 | AZ57: 0 | BA57: 0
A58: 4 | B58: Constant price revenue growth, 2025/26 | C58: 0 | D58: 0 | E58: 0 | F58: 0 | G58: 0 | H58: 0 | I58: 0 | J58: 0 | K58: 0 | L58: 0 | M58: 0 | N58: 0 | O58: 0 | P58: 0 | Q58: 0 | U58: 0 | V58: 0 | W58: 0 | X58: 0 | Y58: 0 | Z58: 0 | AA58: 0 | AB58: 0 | AC58: 0 | AD58: 0 | AE58: 0 | AF58: 0 | AG58: 0 | AH58: 0 | AI58: 0 | AM58: 0 | AN58: 0 | AO58: 0 | AP58: 0 | AQ58: 0 | AR58: 0 | AS58: 0 | AT58: 0 | AU58: 0 | AV58: 0 | AW58: 0 | AX58: 0 | AY58: 0 | AZ58: 0 | BA58: 0
A59: 4 | B59: Constant price revenue growth, 2026/27 | C59: 0 | D59: 0 | E59: 0 | F59: 0 | G59: 0 | H59: 0 | I59: 0 | J59: 0 | K59: 0 | L59: 0 | M59: 0 | N59: 0 | O59: 0 | P59: 0 | Q59: 0 | U59: 0 | V59: 0 | W59: 0 | X59: 0 | Y59: 0 | Z59: 0 | AA59: 0 | AB59: 0 | AC59: 0 | AD59: 0 | AE59: 0 | AF59: 0 | AG59: 0 | AH59: 0 | AI59: 0 | AM59: 0 | AN59: 0 | AO59: 0 | AP59: 0 | AQ59: 0 | AR59: 0 | AS59: 0 | AT59: 0 | AU59: 0 | AV59: 0 | AW59: 0 | AX59: 0 | AY59: 0 | AZ59: 0 | BA59: 0
A60: 4 | B60: Constant price revenue growth, 2027/28 | C60: 0 | D60: 0 | E60: 0 | F60: 0 | G60: 0 | H60: 0 | I60: 0 | J60: 0 | K60: 0 | L60: 0 | M60: 0 | N60: 0 | O60: 0 | P60: 0 | Q60: 0 | U60: 0 | V60: 0 | W60: 0 | X60: 0 | Y60: 0 | Z60: 0 | AA60: 0 | AB60: 0 | AC60: 0 | AD60: 0 | AE60: 0 | AF60: 0 | AG60: 0 | AH60: 0 | AI60: 0 | AM60: 0 | AN60: 0 | AO60: 0 | AP60: 0 | AQ60: 0 | AR60: 0 | AS60: 0 | AT60: 0 | AU60: 0 | AV60: 0 | AW60: 0 | AX60: 0 | AY60: 0 | AZ60: 0 | BA60: 0
A61: 4 | B61: Constant price revenue growth, 2028/29 | C61: 0 | D61: 0 | E61: 0 | F61: 0 | G61: 0 | H61: 0 | I61: 0 | J61: 0 | K61: 0 | L61: 0 | M61: 0 | N61: 0 | O61: 0 | P61: 0 | Q61: 0 | U61: 0 | V61: 0 | W61: 0 | X61: 0 | Y61: 0 | Z61: 0 | AA61: 0 | AB61: 0 | AC61: 0 | AD61: 0 | AE61: 0 | AF61: 0 | AG61: 0 | AH61: 0 | AI61: 0 | AM61: 0 | AN61: 0 | AO61: 0 | AP61: 0 | AQ61: 0 | AR61: 0 | AS61: 0 | AT61: 0 | AU61: 0 | AV61: 0 | AW61: 0 | AX61: 0 | AY61: 0 | AZ61: 0 | BA61: 0
A62: 4 | B62: Constant price revenue growth, 2029/30 | C62: 0 | D62: 0 | E62: 0 | F62: 0 | G62: 0 | H62: 0 | I62: 0 | J62: 0 | K62: 0 | L62: 0 | M62: 0 | N62: 0 | O62: 0 | P62: 0 | Q62: 0 | U62: 0 | V62: 0 | W62: 0 | X62: 0 | Y62: 0 | Z62: 0 | AA62: 0 | AB62: 0 | AC62: 0 | AD62: 0 | AE62: 0 | AF62: 0 | AG62: 0 | AH62: 0 | AI62: 0 | AM62: 0 | AN62: 0 | AO62: 0 | AP62: 0 | AQ62: 0 | AR62: 0 | AS62: 0 | AT62: 0 | AU62: 0 | AV62: 0 | AW62: 0 | AX62: 0 | AY62: 0 | AZ62: 0 | BA62: 0
B63: Value of commissioned assets | U63: VCA ex AMPs
A64: 7 | B64: ="Value of commissioned assets, " & N19 -> Value of commissioned assets, 2023/24 | C64: =IF($C$5<$A64,AM64,U64) -> 22720 | D64: 88605.44834 | E64: =IF($C$5<$A64,AO64,W64) -> 14319.38538 | F64: 14996.60791 | G64: 5486.812717 | H64: 9443.572367 | I64: 1892 | J64: 15021 | K64: 135507 | L64: 20446.43045 | M64: 21238.08 | N64: 23497 | O64: 91746.6759 | P64: 358149 | Q64: 53806.66692 | U64: 22720 | V64: 88605.44834 | W64: 14319.38538 | X64: 14996.60791 | Y64: 5486.812717 | Z64: 9443.572367 | AA64: 1892 | AB64: 15021 | AC64: 135507 | AD64: 20446.43045 | AE64: 21238.08 | AF64: 23497 | AG64: 91746.6759 | AH64: 358149 | AI64: 53806.66692 | AM64: 17961.77993 | AN64: 63004.354 | AO64: 16375.66566 | AP64: 11755.60458 | AQ64: 4533.37 | AR64: 12884.01 | AS64: 1659.3482 | AT64: 6557 | AU64: 63636.968 | AV64: 12936.76861 | AW64: 23462.78369 | AX64: 15378.41393 | AY64: 53881.408 | AZ64: 203460 | BA64: 37191.00171
A65: =$A$64 -> 7 | B65: Value of commissioned assets, 2024/25 | C65: 33515.80935 | D65: 87264.08054 | E65: 14313.31563 | F65: 21236.08026 | G65: 6375.113941 | H65: 12165.26697 | I65: 3023.314121 | J65: 21007.89162 | K65: 129085.2004 | L65: 16788.96822 | M65: 29272.60279 | N65: 34756.34251 | O65: 84484.58766 | P65: 264611.3328 | Q65: 47410.57418 | U65: 33515.80935 | V65: 87264.08054 | W65: 14313.31563 | X65: 21236.08026 | Y65: 6375.113941 | Z65: 12165.26697 | AA65: 3023.314121 | AB65: 21007.89162 | AC65: 129085.2004 | AD65: 16788.96822 | AE65: 29272.60279 | AF65: 34756.34251 | AG65: 84484.58766 | AH65: 264611.3328 | AI65: 47410.57418 | AM65: 14014 | AN65: 76195.24183 | AO65: 21629.30733 | AP65: 9803.84829 | AQ65: 5750.222511 | AR65: 8296.868168 | AS65: 1552 | AT65: 15593 | AU65: 66443.232 | AV65: 23187.72482 | AW65: 18922.35535 | AX65: 31785.32203 | AY65: 50412.92153 | AZ65: 240761 | BA65: 52409.99428
A66: 7 | B66: Value of commissioned assets, 2025/26 | C66: 32905.01026 | D66: 79115.56708 | E66: 18600.47585 | F66: 18791.70688 | G66: 6816.899866 | H66: 14488.94957 | I66: 2471.008777 | J66: 25365.48733 | K66: 113642.1971 | L66: 23665.4574 | M66: 29464.93151 | N66: 28507.97608 | O66: 73066.64773 | P66: 351381.7052 | Q66: 63340.0929 | U66: 32905.01026 | V66: 79115.56708 | W66: 18600.47585 | X66: 18791.70688 | Y66: 6816.899866 | Z66: 14488.94957 | AA66: 2471.008777 | AB66: 25365.48733 | AC66: 113642.1971 | AD66: 23665.4574 | AE66: 29464.93151 | AF66: 28507.97608 | AG66: 73066.64773 | AH66: 351381.7052 | AI66: 63340.0929 | AM66: 16663.08499 | AN66: 50947.77351 | AO66: 18050.31413 | AP66: 9684.977778 | AQ66: 4655.623511 | AR66: 8322.469242 | AS66: 1627.474824 | AT66: 10289.86037 | AU66: 72172.3836 | AV66: 13989.58467 | AW66: 18320.86004 | AX66: 14593.15331 | AY66: 46746.12475 | AZ66: 211119.9719 | BA66: 37748.02201
A67: 7 | B67: Value of commissioned assets, 2026/27 | C67: 30784.76011 | D67: 97716.95089 | E67: 16061.01303 | F67: 19082.19161 | G67: 9159.675392 | H67: 16975.40321 | I67: 2988.167758 | J67: 21642.00013 | K67: 139406.4408 | L67: 32755.98118 | M67: 27212.82446 | N67: 25964.41419 | O67: 82822.80258 | P67: 343015.2756 | Q67: 98259.04494 | U67: 30784.76011 | V67: 97716.95089 | W67: 16061.01303 | X67: 19082.19161 | Y67: 9159.675392 | Z67: 16975.40321 | AA67: 2988.167758 | AB67: 21642.00013 | AC67: 139406.4408 | AD67: 32755.98118 | AE67: 27212.82446 | AF67: 25964.41419 | AG67: 82822.80258 | AH67: 343015.2756 | AI67: 98259.04494 | AM67: 16978.39945 | AN67: 50750.30833 | AO67: 17941.49324 | AP67: 10136.40106 | AQ67: 5052.944771 | AR67: 6720.079499 | AS67: 1709.820373 | AT67: 12261.46064 | AU67: 63777.11187 | AV67: 13504.17305 | AW67: 16919.22791 | AX67: 15127.25397 | AY67: 52524.92856 | AZ67: 209600.0063 | BA67: 35509.95434
A68: 7 | B68: Value of commissioned assets, 2027/28 | C68: 27851.73573 | D68: 110525.9806 | E68: 16106.8824 | F68: 15070.09484 | G68: 9815.407373 | H68: 16411.82068 | I68: 3127.76941 | J68: 19226.43863 | K68: 132612.3885 | L68: 33547.78624 | M68: 23581.05951 | N68: 26414.8258 | O68: 80439.19643 | P68: 299481.8833 | Q68: 92471.55934 | U68: 27851.73573 | V68: 110525.9806 | W68: 16106.8824 | X68: 15070.09484 | Y68: 9815.407373 | Z68: 16411.82068 | AA68: 3127.76941 | AB68: 19226.43863 | AC68: 132612.3885 | AD68: 33547.78624 | AE68: 23581.05951 | AF68: 26414.8258 | AG68: 80439.19643 | AH68: 299481.8833 | AI68: 92471.55934 | AM68: 15377.14096 | AN68: 48245.58195 | AO68: 17796.75912 | AP68: 8982.174078 | AQ68: 5567.574752 | AR68: 8075.367255 | AS68: 1663.731588 | AT68: 9042.364133 | AU68: 89623.65441 | AV68: 18002.80896 | AW68: 15873.67665 | AX68: 16514.78571 | AY68: 50530.60146 | AZ68: 213423.9823 | BA68: 37677.09052
A69: 7 | B69: Value of commissioned assets, 2028/29 | C69: 24892.75621 | D69: 111847.3019 | E69: 15999.17687 | F69: 17337.18349 | G69: 8096.29416 | H69: 15027.89472 | I69: 2693.48369 | J69: 16957.48282 | K69: 139111.1486 | L69: 36202.42867 | M69: 24954.64603 | N69: 27190.20549 | O69: 82819.67621 | P69: 259508.2522 | Q69: 93460.37687 | U69: 24892.75621 | V69: 111847.3019 | W69: 15999.17687 | X69: 17337.18349 | Y69: 8096.29416 | Z69: 15027.89472 | AA69: 2693.48369 | AB69: 16957.48282 | AC69: 139111.1486 | AD69: 36202.42867 | AE69: 24954.64603 | AF69: 27190.20549 | AG69: 82819.67621 | AH69: 259508.2522 | AI69: 93460.37687 | AM69: 14672.77715 | AN69: 38772.73852 | AO69: 15710.8415 | AP69: 9383.363028 | AQ69: 5578.077014 | AR69: 8520.763277 | AS69: 1665.534351 | AT69: 10071.95114 | AU69: 79929.574 | AV69: 23071.29684 | AW69: 16558.30227 | AX69: 16264.11707 | AY69: 46851.60486 | AZ69: 209518.1839 | BA69: 39911.18605
A70: 7 | B70: Value of commissioned assets, 2029/30 | C70: 29421.63724 | D70: 111899.3553 | E70: 16190.85362 | F70: 16883.88391 | G70: 9706.586805 | H70: 14971.3211 | I70: 2692.452344 | J70: 17067.84505 | K70: 143037.4237 | L70: 37987.5614 | M70: 24052.39675 | N70: 26362.9069 | O70: 101287.9568 | P70: 267669.7197 | Q70: 75316.57627 | U70: 29421.63724 | V70: 111899.3553 | W70: 16190.85362 | X70: 16883.88391 | Y70: 9706.586805 | Z70: 14971.3211 | AA70: 2692.452344 | AB70: 17067.84505 | AC70: 143037.4237 | AD70: 37987.5614 | AE70: 24052.39675 | AF70: 26362.9069 | AG70: 101287.9568 | AH70: 267669.7197 | AI70: 75316.57627 | AM70: 14150.71115 | AN70: 43211.49356 | AO70: 14722.51895 | AP70: 10052.31519 | AQ70: 5125.786826 | AR70: 8567.100545 | AS70: 1671.915809 | AT70: 8471.990543 | AU70: 84444.36524 | AV70: 13934.59964 | AW70: 15250.21014 | AX70: 16597.07094 | AY70: 48041.41008 | AZ70: 197131.6496 | BA70: 42077.36282
B71: Disposed assets
A72: 2 | B72: ="Value of disposed assets, " & N19 -> Value of disposed assets, 2023/24 | C72: 22.25074483 | D72: 2095.53017 | E72: =IF($C$5<$A72,AO72,W72) -> 731.152209 | F72: =IF($C$5<$A72,AP72,X72) -> 40.72533158 | G72: =IF($C$5<$A72,AQ72,Y72) -> 89.88170832 | H72: =IF($C$5<$A72,AR72,Z72) -> 278.9331477 | I72: =IF($C$5<$A72,AS72,AA72) -> 3.558988764 | J72: =IF($C$5<$A72,AT72,AB72) -> 1111.60286 | K72: =IF($C$5<$A72,AU72,AC72) -> 944.093774 | L72: =IF($C$5<$A72,AV72,AD72) -> 109.3459592 | M72: =IF($C$5<$A72,AW72,AE72) -> 146.4957158 | N72: =IF($C$5<$A72,AX72,AF72) -> 151.6014851 | O72: =IF($C$5<$A72,AY72,AG72) -> 1474.712292 | P72: =IF($C$5<$A72,AZ72,AH72) -> 16163.25958 | Q72: =IF($C$5<$A72,BA72,AI72) -> 0 | U72: 22.25074483 | V72: 2095.53017 | W72: 731.152209 | X72: 40.72533158 | Y72: 89.88170832 | Z72: 278.9331477 | AA72: 3.558988764 | AB72: 1111.60286 | AC72: 944.093774 | AD72: 109.3459592 | AE72: 146.4957158 | AF72: 151.6014851 | AG72: 1474.712292 | AH72: 16163.25958 | AI72: 0 | AM72: 0 | AN72: 853.067 | AO72: 773.1872516 | AP72: 162.027095 | AQ72: 125.5172149 | AR72: 142.4 | AS72: 0 | AT72: 393 | AU72: 1377.93637 | AV72: 79.50196669 | AW72: 346.585288 | AX72: 15.95 | AY72: 1812 | AZ72: 7412 | BA72: 0
A73: 2 | B73: Value of disposed assets, 2024/25 | C73: 22.82926419 | D73: 2150.013955 | E73: 750.1621665 | F73: 41.7841902 | G73: 92.21863274 | H73: 286.1854095 | I73: 3.651522472 | J73: 1140.504534 | K73: 968.6402121 | L73: 112.1889542 | M73: 150.3046044 | N73: 155.5431237 | O73: 1513.054811 | P73: 16583.50432 | Q73: 0 | U73: 22.82926419 | V73: 2150.013955 | W73: 750.1621665 | X73: 41.7841902 | Y73: 92.21863274 | Z73: 286.1854095 | AA73: 3.651522472 | AB73: 1140.504534 | AC73: 968.6402121 | AD73: 112.1889542 | AE73: 150.3046044 | AF73: 155.5431237 | AG73: 1513.054811 | AH73: 16583.50432 | AI73: 0 | AM73: 130.5628549 | AN73: 291.1814714 | AO73: 1081.618105 | AP73: 178.4788566 | AQ73: 122.5443026 | AR73: 279.5283851 | AS73: 69.6737697 | AT73: 549.0391778 | AU73: 1719.455398 | AV73: 286.7167309 | AW73: 506.7122106 | AX73: 27.48176853 | AY73: 2627.610878 | AZ73: 10769.99498 | BA73: 3.283449027
A74: 2 | B74: Value of disposed assets, 2025/26 | C74: 23.28584948 | D74: 2193.014234 | E74: 765.1654098 | F74: 42.61987401 | G74: 94.06300539 | H74: 291.9091177 | I74: 3.724552921 | J74: 1163.314625 | K74: 988.0130163 | L74: 114.4327333 | M74: 153.3106965 | N74: 158.6539862 | O74: 1543.315907 | P74: 16915.17441 | Q74: 0 | U74: 23.28584948 | V74: 2193.014234 | W74: 765.1654098 | X74: 42.61987401 | Y74: 94.06300539 | Z74: 291.9091177 | AA74: 3.724552921 | AB74: 1163.314625 | AC74: 988.0130163 | AD74: 114.4327333 | AE74: 153.3106965 | AF74: 158.6539862 | AG74: 1543.315907 | AH74: 16915.17441 | AI74: 0 | AM74: 133.0435492 | AN74: 296.7139193 | AO74: 1102.168849 | AP74: 181.8699549 | AQ74: 124.8726444 | AR74: 284.8394244 | AS74: 70.99757132 | AT74: 559.4709222 | AU74: 1752.125051 | AV74: 292.1643488 | AW74: 516.3397426 | AX74: 28.00392213 | AY74: 2677.535484 | AZ74: 10974.62489 | BA74: 3.345834558
A75: 2 | B75: Value of disposed assets, 2026/27 | C75: 23.75156646 | D75: 2236.874518 | E75: 780.468718 | F75: 43.47227149 | G75: 95.9442655 | H75: 297.7473001 | I75: 3.79904398 | J75: 1186.580917 | K75: 1007.773277 | L75: 116.7213879 | M75: 156.3769104 | N75: 161.8270659 | O75: 1574.182226 | P75: 17253.4779 | Q75: 0 | U75: 23.75156646 | V75: 2236.874518 | W75: 780.468718 | X75: 43.47227149 | Y75: 95.9442655 | Z75: 297.7473001 | AA75: 3.79904398 | AB75: 1186.580917 | AC75: 1007.773277 | AD75: 116.7213879 | AE75: 156.3769104 | AF75: 161.8270659 | AG75: 1574.182226 | AH75: 17253.4779 | AI75: 0 | AM75: 135.7044202 | AN75: 302.6481977 | AO75: 1124.212226 | AP75: 185.507354 | AQ75: 127.3700973 | AR75: 290.5362129 | AS75: 72.41752275 | AT75: 570.6603406 | AU75: 1787.167552 | AV75: 298.0076358 | AW75: 526.6665374 | AX75: 28.56400058 | AY75: 2731.086194 | AZ75: 11194.11739 | BA75: 3.412751249
A76: 2 | B76: Value of disposed assets, 2027/28 | C76: 24.22659779 | D76: 2281.612009 | E76: 796.0780924 | F76: 44.34171692 | G76: 97.86315081 | H76: 303.7022461 | I76: 3.875024859 | J76: 1210.312536 | K76: 1027.928742 | L76: 119.0558157 | M76: 159.5044486 | N76: 165.0636073 | O76: 1605.66587 | P76: 17598.54746 | Q76: 0 | U76: 24.22659779 | V76: 2281.612009 | W76: 796.0780924 | X76: 44.34171692 | Y76: 97.86315081 | Z76: 303.7022461 | AA76: 3.875024859 | AB76: 1210.312536 | AC76: 1027.928742 | AD76: 119.0558157 | AE76: 159.5044486 | AF76: 165.0636073 | AG76: 1605.66587 | AH76: 17598.54746 | AI76: 0 | AM76: 138.4185086 | AN76: 308.7011617 | AO76: 1146.696471 | AP76: 189.2175011 | AQ76: 129.9174992 | AR76: 296.3469372 | AS76: 73.8658732 | AT76: 582.0735474 | AU76: 1822.910903 | AV76: 303.9677885 | AW76: 537.1998682 | AX76: 29.13528059 | AY76: 2785.707918 | AZ76: 11417.99973 | BA76: 3.481006274
A77: 2 | B77: Value of disposed assets, 2028/29 | C77: 24.71112975 | D77: 2327.244249 | E77: 811.9996542 | F77: 45.22855125 | G77: 99.82041383 | H77: 309.776291 | I77: 3.952525357 | J77: 1234.518787 | K77: 1048.487317 | L77: 121.436932 | M77: 162.6945376 | N77: 168.3648794 | O77: 1637.779187 | P77: 17950.51841 | Q77: 0 | U77: 24.71112975 | V77: 2327.244249 | W77: 811.9996542 | X77: 45.22855125 | Y77: 99.82041383 | Z77: 309.776291 | AA77: 3.952525357 | AB77: 1234.518787 | AC77: 1048.487317 | AD77: 121.436932 | AE77: 162.6945376 | AF77: 168.3648794 | AG77: 1637.779187 | AH77: 17950.51841 | AI77: 0 | AM77: 141.1868787 | AN77: 314.8751849 | AO77: 1169.6304 | AP77: 193.0018511 | AQ77: 132.5158492 | AR77: 302.2738759 | AS77: 75.34319067 | AT77: 593.7150184 | AU77: 1859.369121 | AV77: 310.0471442 | AW77: 547.9438655 | AX77: 29.7179862 | AY77: 2841.422076 | AZ77: 11646.35973 | BA77: 3.5506264
A78: 2 | B78: Value of disposed assets, 2029/30 | C78: 25.20535234 | D78: 2373.789134 | E78: 828.2396473 | F78: 46.13312228 | G78: 101.8168221 | H78: 315.9718168 | I78: 4.031575864 | J78: 1259.209162 | K78: 1069.457063 | L78: 123.8656706 | M78: 165.9484284 | N78: 171.732177 | O78: 1670.534771 | P78: 18309.52877 | Q78: 0 | U78: 25.20535234 | V78: 2373.789134 | W78: 828.2396473 | X78: 46.13312228 | Y78: 101.8168221 | Z78: 315.9718168 | AA78: 4.031575864 | AB78: 1259.209162 | AC78: 1069.457063 | AD78: 123.8656706 | AE78: 165.9484284 | AF78: 171.732177 | AG78: 1670.534771 | AH78: 18309.52877 | AI78: 0 | AM78: 144.0106163 | AN78: 321.1726886 | AO78: 1193.023008 | AP78: 196.8618881 | AQ78: 135.1661662 | AR78: 308.3193534 | AS78: 76.85005448 | AT78: 605.5893187 | AU78: 1896.556503 | AV78: 316.2480871 | AW78: 558.9027428 | AX78: 30.31234592 | AY78: 2898.250518 | AZ78: 11879.28692 | BA78: 3.621638928
B79: Other regulated income | U79: Zeroed
A80: =A48+1 -> 7 | B80: ="Other regulated income, " & N19 -> Other regulated income, 2023/24 | C80: =IF($C$5<$A80,AM80,U80) -> 0 | D80: 0 | E80: =IF($C$5<$A80,AO80,W80) -> 0 | F80: 0 | G80: 0 | H80: 0 | I80: 0 | J80: 0 | K80: 0 | L80: 0 | M80: 0 | N80: 0 | O80: 0 | P80: 0 | Q80: 0 | U80: 0 | V80: 0 | W80: 0 | X80: 0 | Y80: 0 | Z80: 0 | AA80: 0 | AB80: 0 | AC80: 0 | AD80: 0 | AE80: 0 | AF80: 0 | AG80: 0 | AH80: 0 | AI80: 0 | AM80: 0 | AN80: 0 | AO80: 0 | AP80: 0 | AQ80: 0 | AR80: 0 | AS80: 0 | AT80: 0 | AU80: 0 | AV80: 0 | AW80: 0 | AX80: 0 | AY80: 0 | AZ80: 0 | BA80: 0
A81: =$A$80 -> 7 | B81: Other regulated income, 2024/25 | C81: 0 | D81: 0 | E81: 0 | F81: 0 | G81: 0 | H81: 0 | I81: 0 | J81: 0 | K81: 0 | L81: 0 | M81: 0 | N81: 0 | O81: 0 | P81: 0 | Q81: 0 | U81: 0 | V81: 0 | W81: 0 | X81: 0 | Y81: 0 | Z81: 0 | AA81: 0 | AB81: 0 | AC81: 0 | AD81: 0 | AE81: 0 | AF81: 0 | AG81: 0 | AH81: 0 | AI81: 0 | AM81: 0 | AN81: 0 | AO81: 0 | AP81: 0 | AQ81: 0 | AR81: 0 | AS81: 0 | AT81: 0 | AU81: 0 | AV81: 0 | AW81: 0 | AX81: 0 | AY81: 0 | AZ81: 0 | BA81: 0
A82: =$A$80 -> 7 | B82: Other regulated income, 2025/26 | C82: 0 | D82: 0 | E82: 0 | F82: 0 | G82: 0 | H82: 0 | I82: 0 | J82: 0 | K82: 0 | L82: 0 | M82: 0 | N82: 0 | O82: 0 | P82: 0 | Q82: 0 | U82: 0 | V82: 0 | W82: 0 | X82: 0 | Y82: 0 | Z82: 0 | AA82: 0 | AB82: 0 | AC82: 0 | AD82: 0 | AE82: 0 | AF82: 0 | AG82: 0 | AH82: 0 | AI82: 0 | AM82: 0 | AN82: 0 | AO82: 0 | AP82: 0 | AQ82: 0 | AR82: 0 | AS82: 0 | AT82: 0 | AU82: 0 | AV82: 0 | AW82: 0 | AX82: 0 | AY82: 0 | AZ82: 0 | BA82: 0
A83: 7 | B83: Other regulated income, 2026/27 | C83: 0 | D83: 0 | E83: 0 | F83: 0 | G83: 0 | H83: 0 | I83: 0 | J83: 0 | K83: 0 | L83: 0 | M83: 0 | N83: 0 | O83: 0 | P83: 0 | Q83: 0 | U83: 0 | V83: 0 | W83: 0 | X83: 0 | Y83: 0 | Z83: 0 | AA83: 0 | AB83: 0 | AC83: 0 | AD83: 0 | AE83: 0 | AF83: 0 | AG83: 0 | AH83: 0 | AI83: 0 | AM83: 0 | AN83: 0 | AO83: 0 | AP83: 0 | AQ83: 0 | AR83: 0 | AS83: 0 | AT83: 0 | AU83: 0 | AV83: 0 | AW83: 0 | AX83: 0 | AY83: 0 | AZ83: 0 | BA83: 0
A84: 7 | B84: Other regulated income, 2027/28 | C84: 0 | D84: 0 | E84: 0 | F84: 0 | G84: 0 | H84: 0 | I84: 0 | J84: 0 | K84: 0 | L84: 0 | M84: 0 | N84: 0 | O84: 0 | P84: 0 | Q84: 0 | U84: 0 | V84: 0 | W84: 0 | X84: 0 | Y84: 0 | Z84: 0 | AA84: 0 | AB84: 0 | AC84: 0 | AD84: 0 | AE84: 0 | AF84: 0 | AG84: 0 | AH84: 0 | AI84: 0 | AM84: 0 | AN84: 0 | AO84: 0 | AP84: 0 | AQ84: 0 | AR84: 0 | AS84: 0 | AT84: 0 | AU84: 0 | AV84: 0 | AW84: 0 | AX84: 0 | AY84: 0 | AZ84: 0 | BA84: 0
A85: 7 | B85: Other regulated income, 2028/29 | C85: 0 | D85: 0 | E85: 0 | F85: 0 | G85: 0 | H85: 0 | I85: 0 | J85: 0 | K85: 0 | L85: 0 | M85: 0 | N85: 0 | O85: 0 | P85: 0 | Q85: 0 | U85: 0 | V85: 0 | W85: 0 | X85: 0 | Y85: 0 | Z85: 0 | AA85: 0 | AB85: 0 | AC85: 0 | AD85: 0 | AE85: 0 | AF85: 0 | AG85: 0 | AH85: 0 | AI85: 0 | AM85: 0 | AN85: 0 | AO85: 0 | AP85: 0 | AQ85: 0 | AR85: 0 | AS85: 0 | AT85: 0 | AU85: 0 | AV85: 0 | AW85: 0 | AX85: 0 | AY85: 0 | AZ85: 0 | BA85: 0
A86: 7 | B86: Other regulated income, 2029/30 | C86: 0 | D86: 0 | E86: 0 | F86: 0 | G86: 0 | H86: 0 | I86: 0 | J86: 0 | K86: 0 | L86: 0 | M86: 0 | N86: 0 | O86: 0 | P86: 0 | Q86: 0 | U86: 0 | V86: 0 | W86: 0 | X86: 0 | Y86: 0 | Z86: 0 | AA86: 0 | AB86: 0 | AC86: 0 | AD86: 0 | AE86: 0 | AF86: 0 | AG86: 0 | AH86: 0 | AI86: 0 | AM86: 0 | AN86: 0 | AO86: 0 | AP86: 0 | AQ86: 0 | AR86: 0 | AS86: 0 | AT86: 0 | AU86: 0 | AV86: 0 | AW86: 0 | AX86: 0 | AY86: 0 | AZ86: 0 | BA86: 0
B87: Allowable notional revenue | U87: Zeroed
B88: Allowable notional revenue 2014/2015 | C88: =IF($C$5<$A88,AM88,U88) -> 0 | D88: 0 | E88: =IF($C$5<$A88,AO88,W88) -> 0 | F88: 0 | G88: 0 | H88: 0 | I88: 0 | J88: 0 | K88: 0 | L88: 0 | M88: 0 | N88: 0 | O88: 0 | P88: 0 | Q88: 0 | U88: 0 | V88: 0 | W88: 0 | X88: 0 | Y88: 0 | Z88: 0 | AA88: 0 | AB88: 0 | AC88: 0 | AD88: 0 | AE88: 0 | AF88: 0 | AG88: 0 | AH88: 0 | AI88: 0 | AM88: 31278.35088 | AN88: 57665.066 | AO88: 29790.56014 | AP88: 21449.537 | AQ88: 13121 | AR88: 21308.973 | AS88: 6884.494938 | AT88: 29374.553 | AU88: 0 | AV88: 25230 | AW88: 38054 | AX88: 33930 | AY88: 101327.41 | AZ88: 395990 | BA88: 104846.1601
B89: Pass-through costs 2014/15 | C89: 0 | D89: 0 | E89: 0 | F89: 0 | G89: 0 | H89: 0 | I89: 0 | J89: 0 | K89: 0 | L89: 0 | M89: 0 | N89: 0 | O89: 0 | P89: 0 | Q89: 0 | U89: 0 | V89: 0 | W89: 0 | X89: 0 | Y89: 0 | Z89: 0 | AA89: 0 | AB89: 0 | AC89: 0 | AD89: 0 | AE89: 0 | AF89: 0 | AG89: 0 | AH89: 0 | AI89: 0 | AM89: 302.105 | AN89: 1137.583 | AO89: 358 | AP89: 365 | AQ89: 193 | AR89: 304.7 | AS89: 84 | AT89: 240 | AU89: 0 | AV89: 235 | AW89: 342 | AX89: 5824 | AY89: 1271 | AZ89: 11551 | BA89: 2907
B90: Claw-back
A91: 1 | B91: Claw-back 2014/15 | C91: 0 | D91: =IF($C$5<$A91,AN91,V91) -> 0 | E91: =IF($C$5<$A91,AO91,W91) -> 0 | F91: 0 | G91: 0 | H91: 0 | I91: 0 | J91: 0 | K91: 0 | L91: 0 | M91: 0 | N91: 0 | O91: 0 | P91: 0 | Q91: 0 | U91: 0 | V91: 0 | W91: 0 | X91: 0 | Y91: 0 | Z91: 0 | AA91: 0 | AB91: 0 | AC91: 0 | AD91: 0 | AE91: 0 | AF91: 0 | AG91: 0 | AH91: 0 | AI91: 0 | AM91: 0 | AN91: 0 | AO91: 0 | AP91: 0 | AQ91: 0 | AR91: 0 | AS91: 0 | AT91: 0 | AU91: 0 | AV91: 0 | AW91: 0 | AX91: 0 | AY91: 0 | AZ91: 0 | BA91: 0
A92: 1 | B92: Claw-back 2015/16 | C92: 0 | D92: 0 | E92: 0 | F92: 0 | G92: 0 | H92: 0 | I92: 0 | J92: 0 | K92: 0 | L92: 0 | M92: 0 | N92: 0 | O92: 0 | P92: 0 | Q92: 0 | U92: 0 | V92: 0 | W92: 0 | X92: 0 | Y92: 0 | Z92: 0 | AA92: 0 | AB92: 0 | AC92: 0 | AD92: 0 | AE92: 0 | AF92: 0 | AG92: 0 | AH92: 0 | AI92: 0 | AM92: 0 | AN92: 0 | AO92: 0 | AP92: 0 | AQ92: 0 | AR92: 0 | AS92: 0 | AT92: 0 | AU92: 0 | AV92: 0 | AW92: 0 | AX92: 0 | AY92: 0 | AZ92: 0 | BA92: 0
B95: 2024/25 net allowable revenue ex DPP3 financial model
C96: Alpine Energy | D96: Aurora Energy | E96: EA Networks | F96: Eastland Network | G96: Electricity Invercargill | H96: Horizon Energy | I96: Nelson Electricity | J96: Network Tasman | K96: Orion | L96: OtagoNet | M96: The Lines Company | N96: Top Energy | O96: Unison Networks | P96: Vector Lines | Q96: Wellington Electricity | U96: Alpine Energy | V96: Aurora Energy | W96: EA Networks | X96: Eastland Network | Y96: Electricity Invercargill | Z96: Horizon Energy | AA96: Nelson Electricity | AB96: Network Tasman | AC96: Orion NZ | AD96: OtagoNet | AE96: The Lines Company | AF96: Top Energy | AG96: Unison Networks | AH96: Vector Lines | AI96: Wellington Electricity | AM96: Alpine Energy | AN96: Aurora Energy | AO96: EA Networks | AP96: Electricity Invercargill | AQ96: Firstlight Network | AR96: Horizon Energy | AS96: Nelson Electricity | AT96: Network Tasman | AU96: Orion NZ | AV96: OtagoNet | AW96: Powerco | AX96: The Lines Company | AY96: Top Energy | AZ96: Unison Networks | BA96: Vector Lines | BB96: Wellington Electricity
B97: Estimated 2024/25 allowable revenue | C97: 46157.2261 | D97: 94510.5517 | E97: 35991.47844 | F97: 26002.77854 | G97: 13264.67223 | H97: 25876.90942 | I97: 5953.830468 | J97: 28625.97737 | K97: 171520.792 | L97: 27897.55129 | M97: 37559.70754 | N97: 41138.06828 | O97: 108237.5763 | P97: 420645.937 | Q97: 98917.68429
B100: Depreciation of existing assets
A101: 8 | B101: The sum of depreciation for existing assets, 2024/25 | C101: =IF($C$5<$A101,AM101,U101) -> 13479.85908 | D101: =IF($C$5<$A101,AN101,V101) -> 30953.75357 | E101: =IF($C$5<$A101,AO101,W101) -> 13294.91035 | F101: =IF($C$5<$A101,AP101,X101) -> 8956.380069 | G101: =IF($C$5<$A101,AQ101,Y101) -> 4334.772314 | H101: =IF($C$5<$A101,AR101,Z101) -> 7855.348524 | I101: =IF($C$5<$A101,AS101,AA101) -> 1773.455833 | J101: =IF($C$5<$A101,AT101,AB101) -> 8368.219334 | K101: =IF($C$5<$A101,AU101,AC101) -> 58324.49371 | L101: =IF($C$5<$A101,AV101,AD101) -> 11708.54528 | M101: =IF($C$5<$A101,AW101,AE101) -> 11160.95649 | N101: =IF($C$5<$A101,AX101,AF101) -> 13266.01082 | O101: =IF($C$5<$A101,AY101,AG101) -> 40614.82542 | P101: =IF($C$5<$A101,AZ101,AH101) -> 162454.5151 | Q101: =IF($C$5<$A101,BA101,AI101) -> 33132.25543 | U101: 13479.85908 | V101: 30953.75357 | W101: 13294.91035 | X101: 8956.380069 | Y101: 4334.772314 | Z101: 7855.348524 | AA101: 1773.455833 | AB101: 8368.219334 | AC101: 58324.49371 | AD101: 11708.54528 | AE101: 11160.95649 | AF101: 13266.01082 | AG101: 40614.82542 | AH101: 162454.5151 | AI101: 33132.25543
A102: =A101 -> 8 | B102: The sum of depreciation for existing assets, 2025/26 | C102: =IF($C$5<$A102,AM102,U102) -> 13462.06177 | D102: =IF($C$5<$A102,AN102,V102) -> 30581.75604 | E102: =IF($C$5<$A102,AO102,W102) -> 13527.54591 | F102: =IF($C$5<$A102,AP102,X102) -> 9198.774813 | G102: =IF($C$5<$A102,AQ102,Y102) -> 4451.903058 | H102: =IF($C$5<$A102,AR102,Z102) -> 7779.856388 | I102: =IF($C$5<$A102,AS102,AA102) -> 1757.208776 | J102: =IF($C$5<$A102,AT102,AB102) -> 7952.141839 | K102: =IF($C$5<$A102,AU102,AC102) -> 58914.29259 | L102: =IF($C$5<$A102,AV102,AD102) -> 12026.16751 | M102: =IF($C$5<$A102,AW102,AE102) -> 11453.20861 | N102: =IF($C$5<$A102,AX102,AF102) -> 13337.77196 | O102: =IF($C$5<$A102,AY102,AG102) -> 41729.13435 | P102: =IF($C$5<$A102,AZ102,AH102) -> 158104.2403 | Q102: =IF($C$5<$A102,BA102,AI102) -> 33277.42439 | U102: 13462.06177 | V102: 30581.75604 | W102: 13527.54591 | X102: 9198.774813 | Y102: 4451.903058 | Z102: 7779.856388 | AA102: 1757.208776 | AB102: 7952.141839 | AC102: 58914.29259 | AD102: 12026.16751 | AE102: 11453.20861 | AF102: 13337.77196 | AG102: 41729.13435 | AH102: 158104.2403 | AI102: 33277.42439
A103: =A102 -> 8 | B103: The sum of depreciation for existing assets, 2026/27 | C103: 13354.6349 | D103: 30121.79218 | E103: 13586.64215 | F103: 9390.434204 | G103: 4544.567071 | H103: 7626.128773 | I103: 1689.864296 | J103: 7100.904206 | K103: 57741.44484 | L103: 12277.5816 | M103: 11681.77231 | N103: 13083.76353 | O103: 42610.66839 | P103: 153469.6847 | Q103: 31425.72968 | U103: 13354.6349 | V103: 30121.79218 | W103: 13586.64215 | X103: 9390.434204 | Y103: 4544.567071 | Z103: 7626.128773 | AA103: 1689.864296 | AB103: 7100.904206 | AC103: 57741.44484 | AD103: 12277.5816 | AE103: 11681.77231 | AF103: 13083.76353 | AG103: 42610.66839 | AH103: 153469.6847 | AI103: 31425.72968
A104: 8 | B104: The sum of depreciation for existing assets, 2027/28 | C104: 13426.95162 | D104: 29789.58121 | E104: 13702.51534 | F104: 9586.619928 | G104: 4639.323623 | H104: 7504.490248 | I104: 1659.419127 | J104: 6977.029868 | K104: 57207.56435 | L104: 12534.79102 | M104: 11915.08666 | N104: 13062.15435 | O104: 43511.82072 | P104: 152033.4917 | Q104: 31142.74143 | U104: 13426.95162 | V104: 29789.58121 | W104: 13702.51534 | X104: 9586.619928 | Y104: 4639.323623 | Z104: 7504.490248 | AA104: 1659.419127 | AB104: 6977.029868 | AC104: 57207.56435 | AD104: 12534.79102 | AE104: 11915.08666 | AF104: 13062.15435 | AG104: 43511.82072 | AH104: 152033.4917 | AI104: 31142.74143
A105: 8 | B105: The sum of depreciation for existing assets, 2028/29 | C105: 13209.00383 | D105: 29699.95671 | E105: 13805.9673 | F105: 9787.560287 | G105: 4736.238424 | H105: 7281.313374 | I105: 1656.40289 | J105: 6983.361948 | K105: 56606.12735 | L105: 12797.9957 | M105: 12153.2681 | N105: 13184.71958 | O105: 44433.20907 | P105: 151948.2166 | Q105: 31007.10745 | U105: 13209.00383 | V105: 29699.95671 | W105: 13805.9673 | X105: 9787.560287 | Y105: 4736.238424 | Z105: 7281.313374 | AA105: 1656.40289 | AB105: 6983.361948 | AC105: 56606.12735 | AD105: 12797.9957 | AE105: 12153.2681 | AF105: 13184.71958 | AG105: 44433.20907 | AH105: 151948.2166 | AI105: 31007.10745
A106: 8 | B106: The sum of depreciation for existing assets, 2029/30 | C106: 12618.68719 | D106: 29842.42728 | E106: 13960.95766 | F106: 9993.553202 | G106: 4835.382013 | H106: 7196.838104 | I106: 1651.761367 | J106: 7067.685951 | K106: 56425.17493 | L106: 13067.41344 | M106: 12396.43876 | N106: 13279.53898 | O106: 45375.50588 | P106: 150553.0898 | Q106: 30866.76569 | U106: 12618.68719 | V106: 29842.42728 | W106: 13960.95766 | X106: 9993.553202 | Y106: 4835.382013 | Z106: 7196.838104 | AA106: 1651.761367 | AB106: 7067.685951 | AC106: 56425.17493 | AD106: 13067.41344 | AE106: 12396.43876 | AF106: 13279.53898 | AG106: 45375.50588 | AH106: 150553.0898 | AI106: 30866.76569

Sheet EDB data
A1: Inputs for the selected distributor | H1: =EDB_Name -> Vector Lines
A2: Data from the Inputs sheet that relates to the selected distributor. The distributor's name is user-selected in cell C4.
A3: Distributor | C3: Scenario
A4: Name | C4: =Waterfall!D3 -> Vector Lines
A5: Distributor number | C5: =SuppNum -> 14
A6: Distributor number (for output data table) | C6: =HLOOKUP(EDB_Name,Inputs!$C$28:$Q$29,2,FALSE) -> 14
A8: General data
A9: Non business-specific single inputs | B9: Value
A10: =Inputs!B22 -> Vanilla WACC (67th percentile) | B10: =Inputs!C22 -> 0.0737
A11: =Inputs!B23 -> Cost of debt | B11: =Inputs!C23 -> 0.0612
A12: =Inputs!B24 -> Leverage | B12: =Inputs!C24 -> 0.41
A13: =Inputs!B25 -> Years of remaining life for newly commissioned assets | B13: =Inputs!C25 -> 44 | C13: years
A14: =Inputs!B26 -> Industry-wide X factor | B14: =Inputs!C26 -> 0
A15: =Inputs!B18 -> Days in a year | B15: =Inputs!C18 -> 365 | C15: days
A16: =Inputs!B19 -> Days from mid-year to year-end | B16: =Inputs!C19 -> 182 | C16: days
A17: =Inputs!B20 -> Days from revenue date to year-end | B17: =Inputs!C20 -> 148 | C17: days
A18: =Inputs!B21 -> Last day of year 1 of the DPP period | B18: =Inputs!C21 -> 2024-03-31
A19: General time-series data
B20: =Inputs!D12 -> 2023/24 | C20: =Inputs!E12 -> 2024/25 | D20: =Inputs!F12 -> 2025/26 | E20: =Inputs!G12 -> 2026/27 | F20: =Inputs!H12 -> 2027/28 | G20: =Inputs!I12 -> 2028/29 | H20: =Inputs!J12 -> 2029/30
A21: =Inputs!B13 -> Year in modelling period | B21: =Inputs!D13 -> 1 | C21: =Inputs!E13 -> 2 | D21: =Inputs!F13 -> 3 | E21: =Inputs!G13 -> 4 | F21: =Inputs!H13 -> 5 | G21: =Inputs!I13 -> 6 | H21: =Inputs!J13 -> 7
A22: =Inputs!B14 -> Year in regulatory period | D22: =Inputs!F14 -> 1 | E22: =Inputs!G14 -> 2 | F22: =Inputs!H14 -> 3 | G22: =Inputs!I14 -> 4 | H22: =Inputs!J14 -> 5
A23: =Inputs!B15 -> Forecast changes in CPI used for revaluations | B23: =Inputs!D15 -> 0.04022988506 | C23: =Inputs!E15 -> 0.026 | D23: =Inputs!F15 -> 0.02 | E23: =Inputs!G15 -> 0.02 | F23: =Inputs!H15 -> 0.02 | G23: =Inputs!I15 -> 0.02 | H23: =Inputs!J15 -> 0.02
A24: =Inputs!B16 -> Forecast changes in the CPI element of the price path | B24: =Inputs!D16 -> 0 | C24: =Inputs!E16 -> 0 | D24: =Inputs!F16 -> 0.021237207 | E24: =Inputs!G16 -> 0.02 | F24: =Inputs!H16 -> 0.02 | G24: =Inputs!I16 -> 0.02 | H24: =Inputs!J16 -> 0.02
A25: =Inputs!B17 -> Company tax rate | B25: =Inputs!D17 -> 0.28 | C25: =Inputs!E17 -> 0.28 | D25: =Inputs!F17 -> 0.28 | E25: =Inputs!G17 -> 0.28 | F25: =Inputs!H17 -> 0.28 | G25: =Inputs!I17 -> 0.28 | H25: =Inputs!J17 -> 0.28
A26: Business-specific data
A27: Initial conditions
A28: =Inputs!B31 -> Opening RAB | B28: =INDEX(Indiv_Data,MATCH(A28,Inputs!B:B,0),$C$5) -> 3891833.06
A29: =Inputs!B32 -> Lost assets | B29: =INDEX(Indiv_Data,MATCH(A29,Inputs!B:B,0),$C$5) -> 0
A30: =Inputs!B33 -> Found assets | B30: =INDEX(Indiv_Data,MATCH(A30,Inputs!B:B,0),$C$5) -> 0
A31: =Inputs!B34 -> Total depreciation | B31: =INDEX(Indiv_Data,MATCH(A31,Inputs!B:B,0),$C$5) -> 162364.3973
A32: =Inputs!B35 -> Revaluations | B32: =INDEX(Indiv_Data,MATCH(A32,Inputs!B:B,0),$C$5) -> 0
A33: =Inputs!B36 -> Closing RAB | B33: =INDEX(Indiv_Data,MATCH(A33,Inputs!B:B,0),$C$5) -> 4227215.585
A34: =Inputs!B37 -> Opening RAB excluding revaluations | B34: =INDEX(Indiv_Data,MATCH(A34,Inputs!B:B,0),$C$5) -> 2910221.549
A35: =Inputs!B38 -> Adjusted depreciation | B35: =INDEX(Indiv_Data,MATCH(A35,Inputs!B:B,0),$C$5) -> 121412.291
A36: =Inputs!B39 -> Tax depreciation | B36: =INDEX(Indiv_Data,MATCH(A36,Inputs!B:B,0),$C$5) -> 131068.3865
A37: =Inputs!B40 -> Opening regulatory tax asset value | B37: =INDEX(Indiv_Data,MATCH(A37,Inputs!B:B,0),$C$5) -> 1260992
A38: =Inputs!B41 -> Amortisation of initial differences in asset values | B38: =INDEX(Indiv_Data,MATCH(A38,Inputs!B:B,0),$C$5) -> 31571.18519
A39: =Inputs!B42 -> Term credit spread differential allowance | B39: =INDEX(Indiv_Data,MATCH(A39,Inputs!B:B,0),$C$5) -> 3388.538619
A40: =Inputs!B43 -> Opening deferred tax balance | B40: =INDEX(Indiv_Data,MATCH(A40,Inputs!B:B,0),$C$5) -> -147224.2519
A41: =Inputs!B44 -> Adjustment factor (for accelerated depreciation) | B41: =INDEX(Indiv_Data,MATCH(A41,Inputs!B:B,0),$C$5) -> 1
A42: =Inputs!B45 -> Additional allowance in 1 April 2015 PV terms | B42: =INDEX(Indiv_Data,MATCH(A42,Inputs!B:B,0),$C$5) -> 0
A43: =Inputs!B46 -> Alternative X factor | B43: =IF(ISNUMBER(INDEX(Indiv_Data,MATCH(A43,Inputs!B:B,0),$C$5)),INDEX(Indiv_Data,MATCH(A43,Inputs!B:B,0),$C$5),"") -> -0.085
A45: Operating expenditure
A46: =Inputs!B48 -> Operating expenditure, 2023/24 | B46: =INDEX(Indiv_Data,MATCH(A46,Inputs!B:B,0),$C$5) -> 0
A47: =Inputs!B49 -> Operating expenditure, 2024/25 | B47: =INDEX(Indiv_Data,MATCH(A47,Inputs!B:B,0),$C$5) -> 0
A48: =Inputs!B50 -> Operating expenditure, 2025/26 | B48: =INDEX(Indiv_Data,MATCH(A48,Inputs!B:B,0),$C$5) -> 188309.0845
A49: =Inputs!B51 -> Operating expenditure, 2026/27 | B49: =INDEX(Indiv_Data,MATCH(A49,Inputs!B:B,0),$C$5) -> 195504.4239
A50: =Inputs!B52 -> Operating expenditure, 2027/28 | B50: =INDEX(Indiv_Data,MATCH(A50,Inputs!B:B,0),$C$5) -> 202992.1792
A51: =Inputs!B53 -> Operating expenditure, 2028/29 | B51: =INDEX(Indiv_Data,MATCH(A51,Inputs!B:B,0),$C$5) -> 211094.3902
A52: =Inputs!B54 -> Operating expenditure, 2029/30 | B52: =INDEX(Indiv_Data,MATCH(A52,Inputs!B:B,0),$C$5) -> 219593.7856
A54: Constant price revenue growth
A55: =Inputs!B56 -> Constant price revenue growth, 2023/24 | B55: =INDEX(Indiv_Data,MATCH(A55,Inputs!B:B,0),$C$5) -> 0
A56: =Inputs!B57 -> Constant price revenue growth, 2024/25 | B56: =INDEX(Indiv_Data,MATCH(A56,Inputs!B:B,0),$C$5) -> 0
A57: =Inputs!B58 -> Constant price revenue growth, 2025/26 | B57: =INDEX(Indiv_Data,MATCH(A57,Inputs!B:B,0),$C$5) -> 0
A58: =Inputs!B59 -> Constant price revenue growth, 2026/27 | B58: =INDEX(Indiv_Data,MATCH(A58,Inputs!B:B,0),$C$5) -> 0
A59: =Inputs!B60 -> Constant price revenue growth, 2027/28 | B59: =INDEX(Indiv_Data,MATCH(A59,Inputs!B:B,0),$C$5) -> 0
A60: =Inputs!B61 -> Constant price revenue growth, 2028/29 | B60: =INDEX(Indiv_Data,MATCH(A60,Inputs!B:B,0),$C$5) -> 0
A61: =Inputs!B62 -> Constant price revenue growth, 2029/30 | B61: =INDEX(Indiv_Data,MATCH(A61,Inputs!B:B,0),$C$5) -> 0
A63: Value of commissioned assets
A64: =Inputs!B64 -> Value of commissioned assets, 2023/24 | B64: =INDEX(Indiv_Data,MATCH(A64,Inputs!B:B,0),$C$5) -> 358149
A65: =Inputs!B65 -> Value of commissioned assets, 2024/25 | B65: =INDEX(Indiv_Data,MATCH(A65,Inputs!B:B,0),$C$5) -> 264611.3328
A66: =Inputs!B66 -> Value of commissioned assets, 2025/26 | B66: =INDEX(Indiv_Data,MATCH(A66,Inputs!B:B,0),$C$5) -> 351381.7052
A67: =Inputs!B67 -> Value of commissioned assets, 2026/27 | B67: =INDEX(Indiv_Data,MATCH(A67,Inputs!B:B,0),$C$5) -> 343015.2756
A68: =Inputs!B68 -> Value of commissioned assets, 2027/28 | B68: =INDEX(Indiv_Data,MATCH(A68,Inputs!B:B,0),$C$5) -> 299481.8833
A69: =Inputs!B69 -> Value of commissioned assets, 2028/29 | B69: =INDEX(Indiv_Data,MATCH(A69,Inputs!B:B,0),$C$5) -> 259508.2522
A70: =Inputs!B70 -> Value of commissioned assets, 2029/30 | B70: =INDEX(Indiv_Data,MATCH(A70,Inputs!B:B,0),$C$5) -> 267669.7197
A72: Disposed assets
A73: =Inputs!B72 -> Value of disposed assets, 2023/24 | B73: =INDEX(Indiv_Data,MATCH(A73,Inputs!B:B,0),$C$5) -> 16163.25958
A74: =Inputs!B73 -> Value of disposed assets, 2024/25 | B74: =INDEX(Indiv_Data,MATCH(A74,Inputs!B:B,0),$C$5) -> 16583.50432
A75: =Inputs!B74 -> Value of disposed assets, 2025/26 | B75: =INDEX(Indiv_Data,MATCH(A75,Inputs!B:B,0),$C$5) -> 16915.17441
A76: =Inputs!B75 -> Value of disposed assets, 2026/27 | B76: =INDEX(Indiv_Data,MATCH(A76,Inputs!B:B,0),$C$5) -> 17253.4779
A77: =Inputs!B76 -> Value of disposed assets, 2027/28 | B77: =INDEX(Indiv_Data,MATCH(A77,Inputs!B:B,0),$C$5) -> 17598.54746
A78: =Inputs!B77 -> Value of disposed assets, 2028/29 | B78: =INDEX(Indiv_Data,MATCH(A78,Inputs!B:B,0),$C$5) -> 17950.51841
A79: =Inputs!B78 -> Value of disposed assets, 2029/30 | B79: =INDEX(Indiv_Data,MATCH(A79,Inputs!B:B,0),$C$5) -> 18309.52877
A81: Other regulated income
A82: =Inputs!B80 -> Other regulated income, 2023/24 | B82: =INDEX(Indiv_Data,MATCH(A82,Inputs!B:B,0),$C$5) -> 0
A83: =Inputs!B81 -> Other regulated income, 2024/25 | B83: =INDEX(Indiv_Data,MATCH(A83,Inputs!B:B,0),$C$5) -> 0
A84: =Inputs!B82 -> Other regulated income, 2025/26 | B84: =INDEX(Indiv_Data,MATCH(A84,Inputs!B:B,0),$C$5) -> 0
A85: =Inputs!B83 -> Other regulated income, 2026/27 | B85: =INDEX(Indiv_Data,MATCH(A85,Inputs!B:B,0),$C$5) -> 0
A86: =Inputs!B84 -> Other regulated income, 2027/28 | B86: =INDEX(Indiv_Data,MATCH(A86,Inputs!B:B,0),$C$5) -> 0
A87: =Inputs!B85 -> Other regulated income, 2028/29 | B87: =INDEX(Indiv_Data,MATCH(A87,Inputs!B:B,0),$C$5) -> 0
A88: =Inputs!B86 -> Other regulated income, 2029/30 | B88: =INDEX(Indiv_Data,MATCH(A88,Inputs!B:B,0),$C$5) -> 0
A90: =Inputs!B100 -> Depreciation of existing assets
A91: =Inputs!B101 -> The sum of depreciation for existing assets, 2024/25 | B91: =INDEX(Indiv_Data,MATCH($A91,Inputs!B:B,0),$C$5) -> 162454.5151
A92: =Inputs!B102 -> The sum of depreciation for existing assets, 2025/26 | B92: =INDEX(Indiv_Data,MATCH(A92,Inputs!B:B,0),$C$5) -> 158104.2403
A93: =Inputs!B103 -> The sum of depreciation for existing assets, 2026/27 | B93: =INDEX(Indiv_Data,MATCH(A93,Inputs!B:B,0),$C$5) -> 153469.6847
A94: =Inputs!B104 -> The sum of depreciation for existing assets, 2027/28 | B94: =INDEX(Indiv_Data,MATCH(A94,Inputs!B:B,0),$C$5) -> 152033.4917
A95: =Inputs!B105 -> The sum of depreciation for existing assets, 2028/29 | B95: =INDEX(Indiv_Data,MATCH(A95,Inputs!B:B,0),$C$5) -> 151948.2166
A96: =Inputs!B106 -> The sum of depreciation for existing assets, 2029/30 | B96: =INDEX(Indiv_Data,MATCH(A96,Inputs!B:B,0),$C$5) -> 150553.0898

Sheet TIMING
A1: Intra-year timing
A2: Derivation of the five timing factors TFopex, TFtax, TFVCA, TFori and TFrev.
A3: Inputs
B4: From | C4: Value
A5: Last day of year 1 of the DPP period | B5: EDB data | C5: ='EDB data'!B18 -> 2024-03-31
A6: Days in a year | B6: EDB data | C6: ='EDB data'!B15 -> 365
A7: Days from mid-year to year-end | B7: EDB data | C7: ='EDB data'!B16 -> 182
A8: Days from revenue date to year-end | B8: EDB data | C8: ='EDB data'!B17 -> 148
A9: Vanilla WACC (67th percentile) | B9: EDB data | C9: =WACC -> 0.0737
A10: Calculations
C11: Value
A12: Mid-year date | C12: =EOMONTH(C5,-6) -> 2023-09-30
A13: Revenue date | C13: =C5-C8 -> 2023-11-04 | D13: As demonstrated below, 12 equal monthly transactions on the 20th of the following month can be approximated by a single payment on the revenue date.
A14: Operating expenditure date | C14: =C12 -> 2023-09-30 | D14: i.e. mid-year
A15: Tax date | C15: =C12 -> 2023-09-30 | D15: i.e. mid-year
A16: Asset commissioning date | C16: =C12 -> 2023-09-30 | D16: i.e. mid-year
A17: Interest date | C17: =C12 -> 2023-09-30 | D17: i.e. mid-year
A18: Asset disposal date | C18: =C12 -> 2023-09-30 | D18: i.e. mid-year
A19: TF for mid-year cash flows | C19: =(1+$C$9)^(C7/C6) -> 1.03609403 | D19: Intra-year timing factors: discount from mid year to end of year values
A20: TFrev | C20: =(1+$C$9)^(C8/C6) -> 1.029253619 | D20: Intra-year timing factor: discount from revenue date to end of year values
A21: Outputs
C22: Value
A23: TFopex | C23: =$C$19 -> 1.03609403
A24: TFtax | C24: =$C$19 -> 1.03609403
A25: TFVCA | C25: 1.03609403
A26: TFori | C26: 1.03609403
A27: TFrev | C27: =$C$20 -> 1.029253619
A28: Check for timing of revenue receipt
A29: Demonstration that a 4 November receipt date for all revenues in a year ending 31 March is almost identical to
A30: receiving 12 equal revenue amounts on the 20th of the month following the provision of service.
A31: Monthly cash flows
A32: Dates of receipt of revenues | C32: =EDATE(C5,-12) -> 2023-03-31 | D32: =EOMONTH(C32,1)+20 -> 2023-05-20 | E32: =EDATE(D32,1) -> 2023-06-20 | F32: =EDATE(E32,1) -> 2023-07-20 | G32: 2023-08-20 | H32: 2023-09-20 | I32: 2023-10-20 | J32: 2023-11-20 | K32: 2023-12-20 | L32: 2024-01-20 | M32: 2024-02-20 | N32: =EDATE(M32,1) -> 2024-03-20 | O32: =EDATE(N32,1) -> 2024-04-20
A33: Indexed amount of revenue | C33: 0 | D33: 1 | E33: 1 | F33: 1 | G33: 1 | H33: 1 | I33: 1 | J33: 1 | K33: 1 | L33: 1 | M33: 1 | N33: 1 | O33: 1
A35: Equivalent single cash flow
A36: Dates of receipt of revenues | C36: =C32 -> 2023-03-31 | D36: =C13 -> 2023-11-04
A37: Indexed amount of revenue | C37: 0 | D37: 12
A39: Present value | C39: Value
A40: ="PV as at "&TEXT(C5,"dd mmm yy")&" of the series of unit amounts" -> PV as at 31 Mar 24 of the series of unit amounts | C40: =XNPV(WACC,C33:O33,C32:O32) -> 11.50269283
A41: PV of the equivalent single amount | C41: =XNPV(WACC,C37:D37,C36:D36) -> 11.50101275
A42: ="Difference in PV for a date of " & TEXT(D36,"d mmm") -> Difference in PV for a date of 4 Nov | C42: =C40-C41 -> 0.001680074092
A43: Percentage difference | C43: =C42/C40 -> 0.0001460591983

Sheet RAB
A1: Regulatory asset base | J1: =EDB_Name -> Vector Lines
A2: Calculations involving the roll-forward of asset values.
A3: Inputs
B4: From | C4: Value | D4: =Inputs!D$12 -> 2023/24 | E4: =Inputs!E$12 -> 2024/25 | F4: =Inputs!F$12 -> 2025/26 | G4: =Inputs!G$12 -> 2026/27 | H4: =Inputs!H$12 -> 2027/28 | I4: =Inputs!I$12 -> 2028/29 | J4: =Inputs!J$12 -> 2029/30
A5: Opening RAB | B5: EDB data | C5: ='EDB data'!B28 -> 3891833.06
A6: Total depreciation | B6: EDB data | C6: ='EDB data'!B31 -> 162364.3973
A7: Revaluations | B7: EDB data | C7: ='EDB data'!B32 -> 0
A8: Closing RAB | B8: EDB data | C8: ='EDB data'!B33 -> 4227215.585
A9: Disposed assets | B9: EDB data | D9: ='EDB data'!$B73 -> 16163.25958 | E9: ='EDB data'!$B74 -> 16583.50432 | F9: ='EDB data'!$B75 -> 16915.17441 | G9: ='EDB data'!$B76 -> 17253.4779 | H9: ='EDB data'!$B77 -> 17598.54746 | I9: ='EDB data'!$B78 -> 17950.51841 | J9: ='EDB data'!$B79 -> 18309.52877
A10: Value of commissioned assets | B10: EDB data | D10: ='EDB data'!$B64 -> 358149 | E10: ='EDB data'!$B65 -> 264611.3328 | F10: ='EDB data'!$B66 -> 351381.7052 | G10: ='EDB data'!$B67 -> 343015.2756 | H10: ='EDB data'!$B68 -> 299481.8833 | I10: ='EDB data'!$B69 -> 259508.2522 | J10: ='EDB data'!$B70 -> 267669.7197
A11: Remaining life of newly commissioned assets | B11: EDB data | C11: ='EDB data'!B13 -> 44
A12: Forecast changes in CPI used for revaluations | B12: EDB data | D12: ='EDB data'!B23 -> 0.04022988506 | E12: ='EDB data'!C23 -> 0.026 | F12: ='EDB data'!D23 -> 0.02 | G12: ='EDB data'!E23 -> 0.02 | H12: ='EDB data'!F23 -> 0.02 | I12: ='EDB data'!G23 -> 0.02 | J12: ='EDB data'!H23 -> 0.02
A13: Adjustment factor (for accelerated depreciation) | B13: EDB data | C13: ='EDB data'!B41 -> 1
A14: Existing asset depreciation | E14: =TRANSPOSE('EDB data'!B91:B96) -> 162454.5151 | F14: 158104.2403 | G14: 153469.6847 | H14: 152033.4917 | I14: 151948.2166 | J14: 150553.0898
A15: Calculations
A16: Roll forward of existing assets
D17: =Inputs!D$12 -> 2023/24 | E17: =Inputs!E$12 -> 2024/25 | F17: =Inputs!F$12 -> 2025/26 | G17: =Inputs!G$12 -> 2026/27 | H17: =Inputs!H$12 -> 2027/28 | I17: =Inputs!I$12 -> 2028/29 | J17: =Inputs!J$12 -> 2029/30
A18: Remaining asset life of existing assets, DPP3 methodology | E18: =100%*C5/C6-1 -> 22.96974413 | F18: =C13*C5/C6-2 -> 21.96974413 | G18: =F18-1 -> 20.96974413 | H18: 19.96974413 | I18: 18.96974413 | J18: 17.96974413
A19: Opening RAB value of existing assets | E19: =D23 -> 4227215.585 | F19: =E23 -> 4157544.092 | G19: =F23 -> 4065254.105 | H19: =G23 -> 3975409.65 | I19: =H23 -> 3884854.325 | J19: =I23 -> 3792215.969
A20: Disposed assets | E20: =E9 -> 16583.50432 | F20: 16915.17441 | G20: 17253.4779 | H20: 17598.54746 | I20: 17950.51841 | J20: 18309.52877
A21: Revaluation of existing assets | E21: =(E19*0.999-E20)*E28 -> 109366.5265 | F21: 82729.42748 | G21: 80878.70746 | H21: 79076.71386 | I21: 77260.37904 | J21: 75402.28448
A22: Depreciation of existing assets | E22: =IF(OR(E14=0, EDB_Name=" Electricity Invercargill",EDB_Name=" OtagoNet"),E19/E18,E14) -> 162454.5151 | F22: 158104.2403 | G22: 153469.6847 | H22: 152033.4917 | I22: 151948.2166 | J22: 150553.0898
A23: Closing RAB value of existing assets | D23: =C8 -> 4227215.585 | E23: =E19-E20+E21-E22 -> 4157544.092 | F23: 4065254.105 | G23: 3975409.65 | H23: 3884854.325 | I23: 3792215.969 | J23: 3698755.634
A25: Individual roll forward of additional assets
D26: =Inputs!D$12 -> 2023/24 | E26: =Inputs!E$12 -> 2024/25 | F26: =Inputs!F$12 -> 2025/26 | G26: =Inputs!G$12 -> 2026/27 | H26: =Inputs!H$12 -> 2027/28 | I26: =Inputs!I$12 -> 2028/29 | J26: =Inputs!J$12 -> 2029/30
A27: Year in modelling period | D27: 1 | E27: =D27+1 -> 2 | F27: =E27+1 -> 3 | G27: 4 | H27: 5 | I27: =H27+1 -> 6 | J27: =I27+1 -> 7
A28: Revaluation rate | D28: =D12 -> 0.04022988506 | E28: 0.026 | F28: 0.02 | G28: 0.02 | H28: 0.02 | I28: 0.02 | J28: 0.02
A29: Commissioned assets | D29: =D$10 -> 358149 | E29: 264611.3328 | F29: 351381.7052 | G29: 343015.2756 | H29: 299481.8833 | I29: 259508.2522 | J29: 267669.7197
A30: Assets commissioned in 2024/25:
A31: Year asset is added during modelling period | C31: =E27 -> 2
A32: Opening RAB | D32: 0 | E32: =D36 -> 0 | F32: 264611.3328 | G32: 263889.6655 | H32: 263030.4898 | I32: 262028.4689 | J32: 260878.1
A33: Years of remaining life | D33: =$C$11+$C31 -> 46 | E33: =D33-1 -> 45 | F33: =E33-1 -> 44 | G33: 43 | H33: =G33-1 -> 42 | I33: =H33-1 -> 41 | J33: =I33-1 -> 40
A34: Revaluation of assets | D34: =D32*D$28 -> 0 | E34: 0 | F34: 5292.226655 | G34: 5277.79331 | H34: 5260.609797 | I34: 5240.569379 | J34: 5217.562001
A35: Depreciation of assets | D35: =D32/D33 -> 0 | E35: 0 | F35: 6013.893926 | G35: 6136.968965 | H35: 6262.63071 | I35: 6390.938266 | J35: 6521.952501
A36: Closing RAB | D36: =D32+D34-D35+IF($C31=D$27,D$29,0) -> 0 | E36: 264611.3328 | F36: 263889.6655 | G36: 263030.4898 | H36: 262028.4689 | I36: 260878.1 | J36: 259573.7095
A37: Assets commissioned in 2025/26:
A38: Year asset is added during modelling period | C38: =F27 -> 3
A39: Opening RAB | D39: 0 | E39: =D43 -> 0 | F39: 0 | G39: 351381.7052 | H39: 350423.3915 | I39: 349282.4781 | J39: 347951.8782
A40: Years of remaining life | D40: =$C$11+$C38 -> 47 | E40: =D40-1 -> 46 | F40: 45 | G40: 44 | H40: 43 | I40: 42 | J40: 41
A41: Revaluation of assets | D41: =D39*D$28 -> 0 | E41: 0 | F41: 0 | G41: 7027.634104 | H41: 7008.467829 | I41: 6985.649562 | J41: 6959.037564
A42: Depreciation of assets | D42: =D39/D40 -> 0 | E42: 0 | F42: 0 | G42: 7985.947846 | H42: 8149.381197 | I42: 8316.249479 | J42: 8486.631175
A43: Closing RAB | D43: =D39+D41-D42+IF($C38=D$27,D$29,0) -> 0 | E43: 0 | F43: 351381.7052 | G43: 350423.3915 | H43: 349282.4781 | I43: 347951.8782 | J43: 346424.2846
A44: Assets commissioned in 2026/27:
A45: Year asset is added during modelling period | C45: =G27 -> 4
A46: Opening RAB | D46: 0 | E46: =D50 -> 0 | F46: 0 | G46: 0 | H46: 343015.2756 | I46: 342079.7794 | J46: 340966.0313
A47: Years of remaining life | D47: =$C$11+$C45 -> 48 | E47: =D47-1 -> 47 | F47: 46 | G47: 45 | H47: 44 | I47: 43 | J47: 42
A48: Revaluation of assets | D48: =D46*D$28 -> 0 | E48: 0 | F48: 0 | G48: 0 | H48: 6860.305512 | I48: 6841.595588 | J48: 6819.320625
A49: Depreciation of assets | D49: =D46/D47 -> 0 | E49: 0 | F49: 0 | G49: 0 | H49: 7795.801718 | I49: 7955.343706 | J49: 8118.238839
A50: Closing RAB | D50: =D46+D48-D49+IF($C45=D$27,D$29,0) -> 0 | E50: 0 | F50: 0 | G50: 343015.2756 | H50: 342079.7794 | I50: 340966.0313 | J50: 339667.113
A51: Assets commissioned in 2027/28:
A52: Year asset is added during modelling period | C52: =H27 -> 5
A53: Opening RAB | D53: 0 | E53: =D57 -> 0 | F53: 0 | G53: 0 | H53: 0 | I53: 299481.8833 | J53: 298665.1146
A54: Years of remaining life | D54: =$C$11+$C52 -> 49 | E54: =D54-1 -> 48 | F54: 47 | G54: 46 | H54: 45 | I54: 44 | J54: 43
A55: Revaluation of assets | D55: =D53*D$28 -> 0 | E55: 0 | F55: 0 | G55: 0 | H55: 0 | I55: 5989.637667 | J55: 5973.302291
A56: Depreciation of assets | D56: =D53/D54 -> 0 | E56: 0 | F56: 0 | G56: 0 | H56: 0 | I56: 6806.406439 | J56: 6945.700339
A57: Closing RAB | D57: =D53+D55-D56+IF($C52=D$27,D$29,0) -> 0 | E57: 0 | F57: 0 | G57: 0 | H57: 299481.8833 | I57: 298665.1146 | J57: 297692.7165
A58: Assets commissioned in 2028/29:
A59: Year asset is added during modelling period | C59: =I27 -> 6
A60: Opening RAB | D60: 0 | E60: =D64 -> 0 | F60: 0 | G60: 0 | H60: 0 | I60: 0 | J60: 259508.2522
A61: Years of remaining life | D61: =$C$11+$C59 -> 50 | E61: =D61-1 -> 49 | F61: 48 | G61: 47 | H61: 46 | I61: 45 | J61: 44
A62: Revaluation of assets | D62: =D60*D$28 -> 0 | E62: 0 | F62: 0 | G62: 0 | H62: 0 | I62: 0 | J62: 5190.165043
A63: Depreciation of assets | D63: =D60/D61 -> 0 | E63: 0 | F63: 0 | G63: 0 | H63: 0 | I63: 0 | J63: 5897.914822
A64: Closing RAB | D64: =D60+D62-D63+IF($C59=D$27,D$29,0) -> 0 | E64: 0 | F64: 0 | G64: 0 | H64: 0 | I64: 259508.2522 | J64: 258800.5024
A65: Assets commissioned in 2029/30:
A66: Year asset is added during modelling period | C66: =J27 -> 7
A67: Opening RAB | D67: 0 | E67: =D71 -> 0 | F67: 0 | G67: 0 | H67: 0 | I67: 0 | J67: 0
A68: Years of remaining life | D68: =$C$11+$C66 -> 51 | E68: =D68-1 -> 50 | F68: =E68-1 -> 49 | G68: 48 | H68: =G68-1 -> 47 | I68: =H68-1 -> 46 | J68: =I68-1 -> 45
A69: Revaluation of assets | D69: =D67*D$28 -> 0 | E69: 0 | F69: 0 | G69: 0 | H69: 0 | I69: 0 | J69: 0
A70: Depreciation of assets | D70: =D67/D68 -> 0 | E70: 0 | F70: 0 | G70: 0 | H70: 0 | I70: 0 | J70: 0
A71: Closing RAB | D71: =D67+D69-D70+IF($C66=D$27,D$29,0) -> 0 | E71: 0 | F71: 0 | G71: 0 | H71: 0 | I71: 0 | J71: 267669.7197
A73: Aggregate roll forward of additional assets
A75: Opening RAB of commissioned additional assets | D75: =D32+D39+D46+D53+D60+D67 -> 0 | E75: 0 | F75: =F32+F39+F46+F53+F60+F67 -> 264611.3328 | G75: 615271.3707 | H75: 956469.1569 | I75: 1252872.61 | J75: 1507969.376
A76: Revaluation of commissioned additional assets | D76: =D34+D41+D48+D55+D62+D69 -> 0 | E76: 0 | F76: =F34+F41+F48+F55+F62+F69 -> 5292.226655 | G76: 12305.42741 | H76: 19129.38314 | I76: 25057.45219 | J76: 30159.38752
A77: Depreciation of commissioned additional assets | D77: 0 | E77: 0 | F77: =F35+F42+F49+F56+F63+F70 -> 6013.893926 | G77: 14122.91681 | H77: 22207.81363 | I77: 29468.93789 | J77: 35970.43768
A78: Closing RAB of commissioned additional assets | D78: 0 | E78: 264611.3328 | F78: =F36+F43+F50+F57+F64+F71 -> 615271.3707 | G78: 956469.1569 | H78: 1252872.61 | I78: 1507969.376 | J78: 1769828.046
A80: Combined roll forward of existing and additional assets
D82: =Inputs!D$12 -> 2023/24 | E82: =Inputs!E$12 -> 2024/25 | F82: =Inputs!F$12 -> 2025/26 | G82: =Inputs!G$12 -> 2026/27 | H82: =Inputs!H$12 -> 2027/28 | I82: =Inputs!I$12 -> 2028/29 | J82: =Inputs!J$12 -> 2029/30
A83: Aggregate opening RAB value | D83: =C5 -> 3891833.06 | E83: =E19+E75 -> 4227215.585 | F83: 4422155.425 | G83: 4680525.476 | H83: 4931878.807 | I83: 5137726.934 | J83: 5300185.345
A84: Total revaluation | D84: =C7 -> 0 | E84: =E21+E76 -> 109366.5265 | F84: 88021.65413 | G84: 93184.13487 | H84: 98206.09699 | I84: 102317.8312 | J84: 105561.672
A85: Total depreciation | D85: =C6 -> 162364.3973 | E85: 162454.5151 | F85: 164118.1343 | G85: 167592.6015 | H85: 174241.3053 | I85: 181417.1545 | J85: 186523.5275
A86: Aggregate closing RAB value | D86: =D23+D78 -> 4227215.585 | E86: 4422155.425 | F86: 4680525.476 | G86: 4931878.807 | H86: 5137726.934 | I86: 5300185.345 | J86: 5468583.68
A87: Check that closing value is as expected. Should = 0 | E87: =E83+E29+E84-E85-E20-E86 -> 0 | F87: =F83+F29+F84-F85-F20-F86 -> 0 | G87: 0 | H87: 0 | I87: 0 | J87: 0
A88: Outputs | E88: =E18-E91 -> -3.051173674 | F88: =F18-F91 -> -4.326477167 | G88: -5.519227382 | H88: -6.178505215 | I88: -6.597218159 | J88: -7.218818737
D90: =Inputs!D$12 -> 2023/24 | E90: =Inputs!E$12 -> 2024/25 | F90: =Inputs!F$12 -> 2025/26 | G90: =Inputs!G$12 -> 2026/27 | H90: =Inputs!H$12 -> 2027/28 | I90: =Inputs!I$12 -> 2028/29 | J90: =Inputs!J$12 -> 2029/30
A91: Remaining asset life of existing assets | E91: =E19/E22 -> 26.02091781 | F91: =F19/F22 -> 26.2962213 | G91: 26.48897151 | H91: 26.14824935 | I91: 25.56696229 | J91: 25.18856287
A92: Total depreciation | D92: =D85 -> 162364.3973 | E92: 162454.5151 | F92: 164118.1343 | G92: 167592.6015 | H92: 174241.3053 | I92: 181417.1545 | J92: 186523.5275
A93: Aggregate opening RAB value | D93: =D83 -> 3891833.06 | E93: =E83 -> 4227215.585 | F93: 4422155.425 | G93: 4680525.476 | H93: 4931878.807 | I93: 5137726.934 | J93: 5300185.345
A94: Total revaluation | D94: =D84 -> 0 | E94: =E84 -> 109366.5265 | F94: 88021.65413 | G94: 93184.13487 | H94: 98206.09699 | I94: 102317.8312 | J94: 105561.672
A95: Aggregate closing RAB value | D95: =D86 -> 4227215.585 | E95: =E86 -> 4422155.425 | F95: 4680525.476 | G95: 4931878.807 | H95: 5137726.934 | I95: 5300185.345 | J95: 5468583.68

Sheet TAX
A1: Tax calculations | J1: =EDB_Name -> Vector Lines
A2: Calculations involving the roll-forward of adjusted depreciation regulatory asset values, deferred tax and tax adjustments.
A3: Inputs
B4: Source | C4: Value | D4: =Inputs!D$12 -> 2023/24 | E4: =Inputs!E$12 -> 2024/25 | F4: =Inputs!F$12 -> 2025/26 | G4: =Inputs!G$12 -> 2026/27 | H4: =Inputs!H$12 -> 2027/28 | I4: =Inputs!I$12 -> 2028/29 | J4: =Inputs!J$12 -> 2029/30
A5: Year in modelling period | B5: EDB data | D5: ='EDB data'!B21 -> 1 | E5: ='EDB data'!C21 -> 2 | F5: ='EDB data'!D21 -> 3 | G5: ='EDB data'!E21 -> 4 | H5: ='EDB data'!F21 -> 5 | I5: ='EDB data'!G21 -> 6 | J5: ='EDB data'!H21 -> 7
A6: Tax rate | B6: EDB data | D6: ='EDB data'!B25 -> 0.28 | E6: ='EDB data'!C25 -> 0.28 | F6: ='EDB data'!D25 -> 0.28 | G6: ='EDB data'!E25 -> 0.28 | H6: ='EDB data'!F25 -> 0.28 | I6: ='EDB data'!G25 -> 0.28 | J6: ='EDB data'!H25 -> 0.28
A7: Value of commissioned assets | B7: EDB data | D7: ='EDB data'!$B64 -> 358149 | E7: ='EDB data'!$B65 -> 264611.3328 | F7: ='EDB data'!$B66 -> 351381.7052 | G7: ='EDB data'!$B67 -> 343015.2756 | H7: ='EDB data'!$B68 -> 299481.8833 | I7: ='EDB data'!$B69 -> 259508.2522 | J7: ='EDB data'!$B70 -> 267669.7197
A8: Remaining life of newly commissioned assets | B8: EDB data | D8: ='EDB data'!B13 -> 44
A9: Amortisation of initial differences in asset values | B9: EDB data | D9: ='EDB data'!B38 -> 31571.18519
A10: Lost assets | B10: EDB data | D10: ='EDB data'!B29 -> 0
A11: Found assets | B11: EDB data | D11: ='EDB data'!B30 -> 0
A12: Disposed assets | B12: EDB data | D12: ='EDB data'!$B73 -> 16163.25958 | E12: ='EDB data'!$B74 -> 16583.50432 | F12: ='EDB data'!$B75 -> 16915.17441 | G12: ='EDB data'!$B76 -> 17253.4779 | H12: ='EDB data'!$B77 -> 17598.54746 | I12: ='EDB data'!$B78 -> 17950.51841 | J12: ='EDB data'!$B79 -> 18309.52877
A13: Opening RAB excluding revaluations | B13: EDB data | D13: ='EDB data'!B34 -> 2910221.549
A14: Adjusted depreciation | B14: EDB data | D14: ='EDB data'!B35 -> 121412.291
A15: Tax depreciation | B15: EDB data | D15: ='EDB data'!B36 -> 131068.3865
A16: Opening regulatory tax asset value | B16: EDB data | D16: ='EDB data'!B37 -> 1260992
A17: Opening deferred tax balance | B17: EDB data | D17: ='EDB data'!B40 -> -147224.2519
A18: Cost of debt | B18: EDB data | D18: ='EDB data'!B11 -> 0.0612
A19: Leverage | B19: EDB data | D19: ='EDB data'!B12 -> 0.41
A20: Remaining asset life of existing assets | B20: RAB | E20: =RAB!E91 -> 26.02091781 | F20: =RAB!F91 -> 26.2962213 | G20: =RAB!G91 -> 26.48897151 | H20: =RAB!H91 -> 26.14824935 | I20: =RAB!I91 -> 25.56696229 | J20: =RAB!J91 -> 25.18856287
A21: Total depreciation | B21: RAB | D21: =RAB!D92 -> 162364.3973 | E21: =RAB!E92 -> 162454.5151 | F21: =RAB!F92 -> 164118.1343 | G21: =RAB!G92 -> 167592.6015 | H21: =RAB!H92 -> 174241.3053 | I21: =RAB!I92 -> 181417.1545 | J21: =RAB!J92 -> 186523.5275
A22: Term credit spread differential allowance | B22: BBAR | D22: =BBAR!D58 -> 3388.538619 | E22: =BBAR!E58 -> 3680.549254 | F22: =BBAR!F58 -> 3850.279344 | G22: =BBAR!G58 -> 4075.236808 | H22: =BBAR!H58 -> 4294.084959 | I22: =BBAR!I58 -> 4473.312669 | J22: =BBAR!J58 -> 4614.76185
A23: Opening investment value | B23: BBAR | D23: =BBAR!D56 -> 3744608.808 | E23: =BBAR!E56 -> 4068447.695 | F23: =BBAR!F56 -> 4244928.788 | G23: =BBAR!G56 -> 4481513.931 | H23: =BBAR!H56 -> 4706311.809 | I23: =BBAR!I56 -> 4882251.104 | J23: =BBAR!J56 -> 5013189.119
A24: Calculations
A25: Adjusted RAB & depreciation of assets commissioned
C26: Value | D26: =Inputs!D$12 -> 2023/24 | E26: =Inputs!E$12 -> 2024/25 | F26: =Inputs!F$12 -> 2025/26 | G26: =Inputs!G$12 -> 2026/27 | H26: =Inputs!H$12 -> 2027/28 | I26: =Inputs!I$12 -> 2028/29 | J26: =Inputs!J$12 -> 2029/30
A27: Commissioned assets | D27: =D7 -> 358149 | E27: 264611.3328 | F27: 351381.7052 | G27: 343015.2756 | H27: 299481.8833 | I27: 259508.2522 | J27: 267669.7197
A28: Assets commissioned in 2014/15: | C28: =E5 -> 2
A29: Opening RAB, adjusted depreciation | D29: 0 | E29: =D32 -> 0 | F29: 264611.3328 | G29: 258597.4388 | H29: 252583.5449 | I29: 246569.651 | J29: 240555.7571
A30: Years of remaining life | D30: =$D$8+$C28 -> 46 | E30: =D30-1 -> 45 | F30: 44 | G30: 43 | H30: 42 | I30: 41 | J30: 40
A31: Adjusted depreciation | D31: =D29/D30 -> 0 | E31: 0 | F31: 6013.893926 | G31: 6013.893926 | H31: 6013.893926 | I31: 6013.893926 | J31: 6013.893926
A32: Closing RAB, adjusted depreciation | D32: =D29-D31+IF($C28=D$5,D$27,0) -> 0 | E32: 264611.3328 | F32: 258597.4388 | G32: 252583.5449 | H32: 246569.651 | I32: 240555.7571 | J32: 234541.8631
A33: Assets commissioned in 2015/16: | C33: =F5 -> 3
A34: Opening RAB, adjusted depreciation | D34: 0 | E34: =D37 -> 0 | F34: 0 | G34: 351381.7052 | H34: 343395.7574 | I34: 335409.8095 | J34: 327423.8617
A35: Years of remaining life | D35: =$D$8+$C33 -> 47 | E35: =D35-1 -> 46 | F35: 45 | G35: 44 | H35: 43 | I35: 42 | J35: 41
A36: Adjusted depreciation | D36: =D34/D35 -> 0 | E36: 0 | F36: 0 | G36: 7985.947846 | H36: 7985.947846 | I36: 7985.947846 | J36: 7985.947846
A37: Closing RAB, adjusted depreciation | D37: =D34-D36+IF($C33=D$5,D$27,0) -> 0 | E37: 0 | F37: 351381.7052 | G37: 343395.7574 | H37: 335409.8095 | I37: 327423.8617 | J37: 319437.9138
A38: Assets commissioned in 2016/17: | C38: =G5 -> 4
A39: Opening RAB, adjusted depreciation | D39: 0 | E39: =D42 -> 0 | F39: 0 | G39: 0 | H39: 343015.2756 | I39: 335219.4739 | J39: 327423.6721
A40: Years of remaining life | D40: =$D$8+$C38 -> 48 | E40: =D40-1 -> 47 | F40: 46 | G40: 45 | H40: 44 | I40: 43 | J40: 42
A41: Adjusted depreciation | D41: =D39/D40 -> 0 | E41: 0 | F41: 0 | G41: 0 | H41: 7795.801718 | I41: 7795.801718 | J41: 7795.801718
A42: Closing RAB, adjusted depreciation | D42: =D39-D41+IF($C38=D$5,D$27,0) -> 0 | E42: 0 | F42: 0 | G42: 343015.2756 | H42: 335219.4739 | I42: 327423.6721 | J42: 319627.8704
A43: Assets commissioned in 2017/18: | C43: =H5 -> 5
A44: Opening RAB, adjusted depreciation | D44: 0 | E44: =D47 -> 0 | F44: 0 | G44: 0 | H44: 0 | I44: 299481.8833 | J44: 292675.4769
A45: Years of remaining life | D45: =$D$8+$C43 -> 49 | E45: =D45-1 -> 48 | F45: 47 | G45: 46 | H45: 45 | I45: 44 | J45: 43
A46: Adjusted depreciation | D46: =D44/D45 -> 0 | E46: 0 | F46: 0 | G46: 0 | H46: 0 | I46: 6806.406439 | J46: 6806.406439
A47: Closing RAB, adjusted depreciation | D47: =D44-D46+IF($C43=D$5,D$27,0) -> 0 | E47: 0 | F47: 0 | G47: 0 | H47: 299481.8833 | I47: 292675.4769 | J47: 285869.0705
A48: Assets commissioned in 2018/19: | C48: =I5 -> 6
A49: Opening RAB, adjusted depreciation | D49: 0 | E49: =D52 -> 0 | F49: 0 | G49: 0 | H49: 0 | I49: 0 | J49: 259508.2522
A50: Years of remaining life | D50: =$D$8+$C48 -> 50 | E50: =D50-1 -> 49 | F50: 48 | G50: 47 | H50: 46 | I50: 45 | J50: 44
A51: Adjusted depreciation | D51: =D49/D50 -> 0 | E51: 0 | F51: 0 | G51: 0 | H51: 0 | I51: 0 | J51: 5897.914822
A52: Closing RAB, adjusted depreciation | D52: =D49-D51+IF($C48=D$5,D$27,0) -> 0 | E52: 0 | F52: 0 | G52: 0 | H52: 0 | I52: 259508.2522 | J52: 253610.3373
A53: Assets commissioned in 2019/20: | C53: =J5 -> 7
A54: Opening RAB, adjusted depreciation | D54: 0 | E54: =D57 -> 0 | F54: =E57 -> 0 | G54: 0 | H54: =G57 -> 0 | I54: =H57 -> 0 | J54: =I57 -> 0
A55: Years of remaining life | D55: =$D$8+$C53 -> 51 | E55: =D55-1 -> 50 | F55: =E55-1 -> 49 | G55: 48 | H55: =G55-1 -> 47 | I55: =H55-1 -> 46 | J55: =I55-1 -> 45
A56: Adjusted depreciation | D56: =D54/D55 -> 0 | E56: 0 | F56: 0 | G56: 0 | H56: 0 | I56: 0 | J56: 0
A57: Closing RAB, adjusted depreciation | D57: =D54-D56+IF($C53=D$5,D$27,0) -> 0 | E57: 0 | F57: 0 | G57: 0 | H57: 0 | I57: 0 | J57: 267669.7197
A58: Total assets commissioned
A59: Total adjusted depreciation of commissioned assets | D59: =D31+D36+D41+D46+D51+D56 -> 0 | E59: 0 | F59: 6013.893926 | G59: 13999.84177 | H59: 21795.64349 | I59: 28602.04993 | J59: 34499.96475
A60: Adjusted depreciation of existing assets
C61: Value | D61: =Inputs!D$12 -> 2023/24 | E61: =Inputs!E$12 -> 2024/25 | F61: =Inputs!F$12 -> 2025/26 | G61: =Inputs!G$12 -> 2026/27 | H61: =Inputs!H$12 -> 2027/28 | I61: =Inputs!I$12 -> 2028/29 | J61: =Inputs!J$12 -> 2029/30
A62: Opening RAB value of existing assets, adjusted depreciation | D62: =D13 -> 2910221.549 | E62: =D68 -> 3130794.998 | F62: =E68 -> 2993893.102 | G62: =F68 -> 2863125.33 | H62: =G68 -> 2737784.404 | I62: =H68 -> 2615483.459 | J62: =I68 -> 2495233.597
A63: Disposed assets | D63: =D12 -> 16163.25958 | E63: 16583.50432 | F63: 16915.17441 | G63: 17253.4779 | H63: 17598.54746 | I63: 17950.51841 | J63: 18309.52877
A64: Base year lost assets | D64: =D10 -> 0
A65: Base year found assets | D65: =D11 -> 0
A66: Adjusted depreciation of existing assets | D66: =D14 -> 121412.291 | E66: =E62/E20 -> 120318.3924 | F66: =F62/F20 -> 113852.5976 | G66: 108087.448 | H66: 104702.3978 | I66: 102299.3435 | J66: 99062.16602
A67: Base year commissioned assets | D67: =D7 -> 358149
A68: Closing RAB value of existing assets, adjusted depreciation | D68: =D62-D63-D64+D65-D66+D67 -> 3130794.998 | E68: =E62-E63-E66 -> 2993893.102 | F68: 2863125.33 | G68: =G62-G63-G66 -> 2737784.404 | H68: =H62-H63-H66 -> 2615483.459 | I68: =I62-I63-I66 -> 2495233.597 | J68: =J62-J63-J66 -> 2377861.902
A69: Regulatory tax asset value
C70: Value | D70: =Inputs!D$12 -> 2023/24 | E70: =Inputs!E$12 -> 2024/25 | F70: =Inputs!F$12 -> 2025/26 | G70: =Inputs!G$12 -> 2026/27 | H70: =Inputs!H$12 -> 2027/28 | I70: =Inputs!I$12 -> 2028/29 | J70: =Inputs!J$12 -> 2029/30
A71: Average DV rate | C71: =D15/D16 -> 0.1039406963
A72: Opening regulatory tax asset value | D72: =D16 -> 1260992 | E72: =D75 -> 1488072.614 | F72: =E75 -> 1598012.643 | G72: =F75 -> 1783295.801 | H72: =G75 -> 1940954.07 | I72: =H75 -> 2038691.835 | J72: =I75 -> 2086297.039
A73: Tax depreciation | D73: =D15 -> 131068.3865 | E73: =E72*$C71 -> 154671.3036 | F73: =F72*$C71 -> 166098.5467 | G73: =G72*$C71 -> 185357.0072 | H73: =H72*$C71 -> 201744.1174 | I73: =I72*$C71 -> 211903.0489 | J73: =J72*$C71 -> 216851.1668
A74: Value of commissioned assets | D74: =D7 -> 358149 | E74: 264611.3328 | F74: 351381.7052 | G74: 343015.2756 | H74: 299481.8833 | I74: 259508.2522 | J74: 267669.7197
A75: Closing regulatory tax asset value | D75: =D72-D73+D74 -> 1488072.614 | E75: 1598012.643 | F75: 1783295.801 | G75: 1940954.07 | H75: 2038691.835 | I75: 2086297.039 | J75: 2137115.592
A76: Depreciation temporary differences
C77: Value | D77: =Inputs!D$12 -> 2023/24 | E77: =Inputs!E$12 -> 2024/25 | F77: =Inputs!F$12 -> 2025/26 | G77: =Inputs!G$12 -> 2026/27 | H77: =Inputs!H$12 -> 2027/28 | I77: =Inputs!I$12 -> 2028/29 | J77: =Inputs!J$12 -> 2029/30
A78: Total adjusted depreciation of assets | D78: =D59+D66 -> 121412.291 | E78: 120318.3924 | F78: 119866.4915 | G78: 122087.2897 | H78: 126498.0413 | I78: 130901.3935 | J78: 133562.1308
A79: Tax depreciation | D79: =D73 -> 131068.3865 | E79: 154671.3036 | F79: 166098.5467 | G79: 185357.0072 | H79: 201744.1174 | I79: 211903.0489 | J79: 216851.1668
A80: Depreciation temporary differences | D80: =D78-D79 -> -9656.095504 | E80: -34352.91118 | F80: -46232.05522 | G80: -63269.71751 | H80: -75246.07617 | I80: -81001.65539 | J80: -83289.03607
A81: Deductions for regulatory tax purposes
A82: Amortisation of initial differences in asset values | D82: =D9 -> 31571.18519 | E82: =D82 -> 31571.18519 | F82: =E82 -> 31571.18519 | G82: 31571.18519 | H82: 31571.18519 | I82: 31571.18519 | J82: 31571.18519
A83: Notional deductible interest | D83: =(D23*$D$19*$D$18+D22)/(1+$D$18)^0.5 -> 94499.51624 | E83: 102670.959 | F83: 107134.3995 | G83: 113115.4489 | H83: 118803.4569 | I83: 123262.9201 | J83: 126589.5817
A84: Amortisation of revaluations | D84: =D21-D78 -> 40952.10634 | E84: 42136.12276 | F84: 44251.64275 | G84: 45505.31175 | H84: 47743.26407 | I84: 50515.76105 | J84: 52961.39675
A85: Regulatory tax adjustments | D85: =D82+D84-D83 -> -21976.22472 | E85: =E82+E84-E83 -> -28963.65108 | F85: -31311.57157 | G85: -36038.95201 | H85: -39489.00766 | I85: -41175.97388 | J85: -42056.99976
A87: Deferred tax asset value
C88: Value | D88: =Inputs!D$12 -> 2023/24 | E88: =Inputs!E$12 -> 2024/25 | F88: =Inputs!F$12 -> 2025/26 | G88: =Inputs!G$12 -> 2026/27 | H88: =Inputs!H$12 -> 2027/28 | I88: =Inputs!I$12 -> 2028/29 | J88: =Inputs!J$12 -> 2029/30
A89: Opening deferred tax | D89: =D17 -> -147224.2519 | E89: =D92 -> -158767.8904 | F89: =E92 -> -177226.6374 | G89: =F92 -> -199011.5447 | H89: =G92 -> -225566.9975 | I89: =H92 -> -255475.8307 | J89: =I92 -> -286996.226
A90: Depreciation temporary differences | D90: =D80 -> -9656.095504 | E90: -34352.91118 | F90: -46232.05522 | G90: -63269.71751 | H90: -75246.07617 | I90: -81001.65539 | J90: -83289.03607
A91: Amortisation of initial differences in asset values | D91: =D82 -> 31571.18519 | E91: 31571.18519 | F91: 31571.18519 | G91: 31571.18519 | H91: 31571.18519 | I91: 31571.18519 | J91: 31571.18519
A92: Closing deferred tax | D92: =D89+(D90-D91)*D6 -> -158767.8904 | E92: -177226.6374 | F92: -199011.5447 | G92: -225566.9975 | H92: -255475.8307 | I92: -286996.226 | J92: -319157.088
A93: Outputs
C94: Value | D94: =Inputs!D$12 -> 2023/24 | E94: =Inputs!E$12 -> 2024/25 | F94: =Inputs!F$12 -> 2025/26 | G94: =Inputs!G$12 -> 2026/27 | H94: =Inputs!H$12 -> 2027/28 | I94: =Inputs!I$12 -> 2028/29 | J94: =Inputs!J$12 -> 2029/30
A95: Total adjusted depreciation of commissioned assets | D95: =D59 -> 0 | E95: 0 | F95: 6013.893926 | G95: 13999.84177 | H95: 21795.64349 | I95: 28602.04993 | J95: 34499.96475
A96: Opening deferred tax | D96: =D89 -> -147224.2519 | E96: =E89 -> -158767.8904 | F96: -177226.6374 | G96: -199011.5447 | H96: -225566.9975 | I96: -255475.8307 | J96: -286996.226
A97: Closing deferred tax | D97: =D92 -> -158767.8904 | E97: =E92 -> -177226.6374 | F97: -199011.5447 | G97: -225566.9975 | H97: -255475.8307 | I97: -286996.226 | J97: -319157.088
A98: Regulatory tax adjustments | D98: =D85 -> -21976.22472 | E98: =E85 -> -28963.65108 | F98: -31311.57157 | G98: -36038.95201 | H98: -39489.00766 | I98: -41175.97388 | J98: -42056.99976

Sheet BBAR
A1: Building blocks allowable revenue | J1: =EDB_Name -> Vector Lines
A2: Derivation of BBAR present value, opening investment value, and TCSD allowance.
A3: Inputs
B4: Source | C4: Value | D4: =Inputs!D$12 -> 2023/24 | E4: =Inputs!E$12 -> 2024/25 | F4: =Inputs!F$12 -> 2025/26 | G4: =Inputs!G$12 -> 2026/27 | H4: =Inputs!H$12 -> 2027/28 | I4: =Inputs!I$12 -> 2028/29 | J4: =Inputs!J$12 -> 2029/30
A5: Year in regulatory period | B5: EDB data | F5: ='EDB data'!D22 -> 1 | G5: ='EDB data'!E22 -> 2 | H5: ='EDB data'!F22 -> 3 | I5: ='EDB data'!G22 -> 4 | J5: ='EDB data'!H22 -> 5
A6: Tax rate | B6: EDB data | D6: ='EDB data'!B25 -> 0.28 | E6: ='EDB data'!C25 -> 0.28 | F6: ='EDB data'!D25 -> 0.28 | G6: ='EDB data'!E25 -> 0.28 | H6: ='EDB data'!F25 -> 0.28 | I6: ='EDB data'!G25 -> 0.28 | J6: ='EDB data'!H25 -> 0.28
A7: Other regulated income | B7: EDB data | D7: ='EDB data'!$B82 -> 0 | E7: ='EDB data'!$B83 -> 0 | F7: ='EDB data'!$B84 -> 0 | G7: ='EDB data'!$B85 -> 0 | H7: ='EDB data'!$B86 -> 0 | I7: ='EDB data'!$B87 -> 0 | J7: ='EDB data'!$B88 -> 0
A8: Term credit spread differential allowance | B8: EDB data | D8: ='EDB data'!B39 -> 3388.538619
A9: Value of commissioned assets | B9: EDB data | D9: ='EDB data'!$B64 -> 358149 | E9: ='EDB data'!$B65 -> 264611.3328 | F9: ='EDB data'!$B66 -> 351381.7052 | G9: ='EDB data'!$B67 -> 343015.2756 | H9: ='EDB data'!$B68 -> 299481.8833 | I9: ='EDB data'!$B69 -> 259508.2522 | J9: ='EDB data'!$B70 -> 267669.7197
A10: Operating expenditure | B10: EDB data | D10: ='EDB data'!$B46 -> 0 | E10: ='EDB data'!$B47 -> 0 | F10: ='EDB data'!$B48 -> 188309.0845 | G10: ='EDB data'!$B49 -> 195504.4239 | H10: ='EDB data'!$B50 -> 202992.1792 | I10: ='EDB data'!$B51 -> 211094.3902 | J10: ='EDB data'!$B52 -> 219593.7856
A11: Vanilla WACC (67th percentile) | B11: EDB data | C11: =WACC -> 0.0737
A12: TFopex | B12: TIMING | C12: =TIMING!C23 -> 1.03609403
A13: TFtax | B13: TIMING | C13: =TIMING!C24 -> 1.03609403
A14: TFVCA | B14: TIMING | C14: =TIMING!C25 -> 1.03609403
A15: TFori | B15: TIMING | C15: =TIMING!C26 -> 1.03609403
A16: TFrev | B16: TIMING | C16: =TIMING!C27 -> 1.029253619
A17: Aggregate opening RAB value | B17: RAB | D17: =RAB!D93 -> 3891833.06 | E17: =RAB!E93 -> 4227215.585 | F17: =RAB!F93 -> 4422155.425 | G17: =RAB!G93 -> 4680525.476 | H17: =RAB!H93 -> 4931878.807 | I17: =RAB!I93 -> 5137726.934 | J17: =RAB!J93 -> 5300185.345
A18: Total revaluation | B18: RAB | D18: =RAB!D94 -> 0 | E18: =RAB!E94 -> 109366.5265 | F18: =RAB!F94 -> 88021.65413 | G18: =RAB!G94 -> 93184.13487 | H18: =RAB!H94 -> 98206.09699 | I18: =RAB!I94 -> 102317.8312 | J18: =RAB!J94 -> 105561.672
A19: Total depreciation | B19: RAB | D19: =RAB!D92 -> 162364.3973 | E19: =RAB!E92 -> 162454.5151 | F19: =RAB!F92 -> 164118.1343 | G19: =RAB!G92 -> 167592.6015 | H19: =RAB!H92 -> 174241.3053 | I19: =RAB!I92 -> 181417.1545 | J19: =RAB!J92 -> 186523.5275
A20: Opening deferred tax | B20: TAX | D20: =TAX!D96 -> -147224.2519 | E20: =TAX!E96 -> -158767.8904 | F20: =TAX!F96 -> -177226.6374 | G20: =TAX!G96 -> -199011.5447 | H20: =TAX!H96 -> -225566.9975 | I20: =TAX!I96 -> -255475.8307 | J20: =TAX!J96 -> -286996.226
A21: Closing deferred tax | B21: TAX | D21: =TAX!D97 -> -158767.8904 | E21: =TAX!E97 -> -177226.6374 | F21: =TAX!F97 -> -199011.5447 | G21: =TAX!G97 -> -225566.9975 | H21: =TAX!H97 -> -255475.8307 | I21: =TAX!I97 -> -286996.226 | J21: =TAX!J97 -> -319157.088
A22: Regulatory tax adjustments | B22: TAX | D22: =TAX!D98 -> -21976.22472 | E22: =TAX!E98 -> -28963.65108 | F22: =TAX!F98 -> -31311.57157 | G22: =TAX!G98 -> -36038.95201 | H22: =TAX!H98 -> -39489.00766 | I22: =TAX!I98 -> -41175.97388 | J22: =TAX!J98 -> -42056.99976
A23: Calculations
A24: Term credit spread differential allowance
D25: =Inputs!D$12 -> 2023/24 | E25: =Inputs!E$12 -> 2024/25 | F25: =Inputs!F$12 -> 2025/26 | G25: =Inputs!G$12 -> 2026/27 | H25: =Inputs!H$12 -> 2027/28 | I25: =Inputs!I$12 -> 2028/29 | J25: =Inputs!J$12 -> 2029/30
A26: Asset base scaling factor | D26: =D17/$D$17 -> 1 | E26: 1.086175979 | F26: 1.136265445 | G26: 1.202653198 | H26: 1.267238016 | I26: 1.320130349 | J26: 1.361873766
A27: Term credit spread differential allowance | D27: =IF(D8>0,D8,0) -> 3388.538619 | E27: =$D27*E26 -> 3680.549254 | F27: 3850.279344 | G27: 4075.236808 | H27: 4294.084959 | I27: 4473.312669 | J27: 4614.76185
A28: Return on capital
D29: =Inputs!D$12 -> 2023/24 | E29: =Inputs!E$12 -> 2024/25 | F29: =Inputs!F$12 -> 2025/26 | G29: =Inputs!G$12 -> 2026/27 | H29: =Inputs!H$12 -> 2027/28 | I29: =Inputs!I$12 -> 2028/29 | J29: =Inputs!J$12 -> 2029/30
A30: Opening investment value | D30: =D17+D20 -> 3744608.808 | E30: 4068447.695 | F30: 4244928.788 | G30: 4481513.931 | H30: 4706311.809 | I30: 4882251.104 | J30: 5013189.119
A31: Value of commissioned assets | D31: =D9 -> 358149 | E31: 264611.3328 | F31: 351381.7052 | G31: 343015.2756 | H31: 299481.8833 | I31: 259508.2522 | J31: 267669.7197
A32: Term credit spread differential allowance | D32: =D27 -> 3388.538619 | E32: 3680.549254 | F32: 3850.279344 | G32: 4075.236808 | H32: 4294.084959 | I32: 4473.312669 | J32: 4614.76185
A33: Total revaluation | D33: =D18 -> 0 | E33: =E18 -> 109366.5265 | F33: 88021.65413 | G33: 93184.13487 | H33: 98206.09699 | I33: 102317.8312 | J33: 105561.672
A34: Return on capital | D34: =D30*$C$11+D31*($C$14-1)+D32-D33 -> 292293.2484 | E34: =E30*$C$11+E31*($C$14-1)+E32-E33 -> 203709.5071 | F34: 241362.6585 | G34: 253559.4822 | H34: 263752.6763 | I34: 271344.0863 | J34: 278186.4067
A35: Operating expenditure
D36: =Inputs!D$12 -> 2023/24 | E36: =Inputs!E$12 -> 2024/25 | F36: =Inputs!F$12 -> 2025/26 | G36: =Inputs!G$12 -> 2026/27 | H36: =Inputs!H$12 -> 2027/28 | I36: =Inputs!I$12 -> 2028/29 | J36: =Inputs!J$12 -> 2029/30
A37: Operating expenditure | D37: =D10 -> 0 | E37: 0 | F37: 188309.0845 | G37: 195504.4239 | H37: 202992.1792 | I37: 211094.3902 | J37: 219593.7856
A38: Operating expenditure allowance | D38: =D37*$C$12 -> 0 | E38: 0 | F38: 195105.9182 | G38: 202560.9664 | H38: 210318.9849 | I38: 218713.6374 | J38: 227519.8102
A39: Building block allowable revenue before tax (BBAR before tax)
D40: =Inputs!D$12 -> 2023/24 | E40: =Inputs!E$12 -> 2024/25 | F40: =Inputs!F$12 -> 2025/26 | G40: =Inputs!G$12 -> 2026/27 | H40: =Inputs!H$12 -> 2027/28 | I40: =Inputs!I$12 -> 2028/29 | J40: =Inputs!J$12 -> 2029/30
A41: Increase in deferred tax asset, ΔDT | D41: =D21-D20 -> -11543.63859 | E41: -18458.74698 | F41: -21784.90731 | G41: -26555.45276 | H41: -29908.83318 | I41: -31520.39536 | J41: -32160.86195
A42: BBAR before tax in revenue date terms, calculation not referencing tax | D42: =(D34+D19+D38+((D7-D37-D19+D22)*D6+D41)*$C13-D41-D7*$C15)/($C16-D6*$C13) -> 542195.8695 | E42: =(E34+E19+E38+((E7-E37-E19+E22)*E6+E41)*$C13-E41-E7*$C15)/($C16-E6*$C13) -> 419356.4044 | F42: 660863.3492 | G42: 685875.0481 | H42: 712090.2834 | I42: 736689.0105 | J42: 759051.3172
A43: Regulatory tax allowance before considering possibility of tax losses | D43: =(D42+D7-D37-D19+D22)*D6 -> 100199.4693 | E43: =(E42+E7-E37-E19+E22)*E6 -> 63822.7067 | F43: 77594.87649 | G43: 80286.93978 | H43: 82702.98156 | I43: 84840.41771 | J43: 87045.56121
A44: Regulatory tax allowance | D44: =IF(D43<0,#N/A,D43) -> 100199.4693 | E44: 63822.7067 | F44: 77594.87649 | G44: 80286.93978 | H44: 82702.98156 | I44: 84840.41771 | J44: 87045.56121
A45: BBAR before tax in year-end terms, direct simple calculation | D45: =D34+D19+D38+(D44+D41)*$C$13-D41-D7*$C$15 -> 558057.0612 | E45: 431624.0971 | F45: 680195.9942 | G45: 705939.3757 | H45: 732921.5016 | I45: 758239.8304 | J45: 781256.3156
A46: BBAR before tax in revenue date terms | D46: =D45/$C$16 -> 542195.8695 | E46: 419356.4044 | F46: 660863.3492 | G46: 685875.0481 | H46: 712090.2834 | I46: 736689.0105 | J46: 759051.3172
A47: Difference between the two BBAR calculations (should = 0) | D47: =D42-D46 -> 0 | E47: 0 | F47: 0 | G47: 0 | H47: 0 | I47: 0 | J47: 0
A48: Present value of the building block allowable revenue before tax
C49: Value | D49: =Inputs!D$12 -> 2023/24 | E49: =Inputs!E$12 -> 2024/25 | F49: =Inputs!F$12 -> 2025/26 | G49: =Inputs!G$12 -> 2026/27 | H49: =Inputs!H$12 -> 2027/28 | I49: =Inputs!I$12 -> 2028/29 | J49: =Inputs!J$12 -> 2029/30
A50: Number of years to discount the year-end values to start of the present value period | F50: =F5 -> 1 | G50: =G5 -> 2 | H50: =H5 -> 3 | I50: =I5 -> 4 | J50: =J5 -> 5
A51: BBAR before tax in year-end terms, i.e. Rev * TFrev | F51: =F45 -> 680195.9942 | G51: =G45 -> 705939.3757 | H51: =H45 -> 732921.5016 | I51: =I45 -> 758239.8304 | J51: =J45 -> 781256.3156
A52: PV at 1 Apr 2015 of BBAR before tax for each year | F52: =F51/(1+WACC)^F$50 -> 633506.5606 | G52: =G51/(1+WACC)^G$50 -> 612352.5072 | H52: =H51/(1+WACC)^H$50 -> 592118.4633 | I52: =I51/(1+WACC)^I$50 -> 570525.1342 | J52: =J51/(1+WACC)^J$50 -> 547493.2581
A53: PV at 1 Apr 2015 of BBAR before tax over the regulatory period | C53: =SUM(F52:J52) -> 2955995.923
A54: Outputs
C55: Value | D55: =Inputs!D$12 -> 2023/24 | E55: =Inputs!E$12 -> 2024/25 | F55: =Inputs!F$12 -> 2025/26 | G55: =Inputs!G$12 -> 2026/27 | H55: =Inputs!H$12 -> 2027/28 | I55: =Inputs!I$12 -> 2028/29 | J55: =Inputs!J$12 -> 2029/30
A56: Opening investment value | D56: =D30 -> 3744608.808 | E56: 4068447.695 | F56: 4244928.788 | G56: 4481513.931 | H56: 4706311.809 | I56: 4882251.104 | J56: 5013189.119
A57: PV at 1 Apr 2015 of BBAR before tax over the regulatory period | C57: =C53 -> 2955995.923
A58: Term credit spread differential allowance | D58: =D27 -> 3388.538619 | E58: =E27 -> 3680.549254 | F58: 3850.279344 | G58: 4075.236808 | H58: 4294.084959 | I58: 4473.312669 | J58: 4614.76185
A59: BBAR before tax in revenue date terms, calculation not referencing tax | D59: =D42 -> 542195.8695 | E59: =E42 -> 419356.4044 | F59: 660863.3492 | G59: 685875.0481 | H59: 712090.2834 | I59: 736689.0105 | J59: 759051.3172

Sheet REV
A1: Revenue growth index | H1: =EDB_Name -> Vector Lines
A2: Derivation of the normalised profile of the maximum allowable revenue before tax values.
A3: Inputs
B4: Source | C4: Value | D4: =Inputs!F$12 -> 2025/26 | E4: =Inputs!G$12 -> 2026/27 | F4: =Inputs!H$12 -> 2027/28 | G4: =Inputs!I$12 -> 2028/29 | H4: =Inputs!J$12 -> 2029/30
A5: Constant price revenue growth | B5: EDB data | D5: ='EDB data'!$B57 -> 0 | E5: ='EDB data'!$B58 -> 0 | F5: ='EDB data'!$B59 -> 0 | G5: ='EDB data'!$B60 -> 0 | H5: ='EDB data'!$B61 -> 0
A6: Industry-wide X factor | B6: EDB data | C6: ='EDB data'!B14 -> 0
A7: Alternative X factor | B7: EDB data | C7: ='EDB data'!B43 -> -0.085
A8: Forecast changes in the CPI element of the price path | B8: EDB data | D8: ='EDB data'!D24 -> 0.021237207 | E8: ='EDB data'!E24 -> 0.02 | F8: ='EDB data'!F24 -> 0.02 | G8: ='EDB data'!G24 -> 0.02 | H8: ='EDB data'!H24 -> 0.02
A9: Calculations
A10: ="Index of price path with industry-wide X factor of "&TEXT(C6,"#0.0%") -> Index of price path with industry-wide X factor of 0.0%
C11: Value | D11: =Inputs!F$12 -> 2025/26 | E11: =Inputs!G$12 -> 2026/27 | F11: =Inputs!H$12 -> 2027/28 | G11: =Inputs!I$12 -> 2028/29 | H11: =Inputs!J$12 -> 2029/30
A12: X value applied | C12: =C6 -> 0
A13: Index of price path | D13: 1 | E13: =D13*(1+E$8)*(1-$C$6) -> 1.02 | F13: =E13*(1+F$8)*(1-$C$6) -> 1.0404 | G13: =F13*(1+G$8)*(1-$C$6) -> 1.061208 | H13: =G13*(1+H$8)*(1-$C$6) -> 1.08243216
A14: Index of constant price growth | D14: 1 | E14: =D14*(1+E$5) -> 1 | F14: =E14*(1+F$5) -> 1 | G14: 1 | H14: 1
A15: Indexed maximum allowable revenue before tax | D15: 1 | E15: =E13*E14 -> 1.02 | F15: =F13*F14 -> 1.0404 | G15: =G13*G14 -> 1.061208 | H15: =H13*H14 -> 1.08243216
A16: ="CPI minus X revenues with applicable X factor (" & IF(ISNUMBER(C7),"alternate X factor of " & TEXT(C7,"#0.0%"), "industry-wide X factor of " & TEXT(C6,"#0.0%"))&")" -> CPI minus X revenues with applicable X factor (alternate X factor of -8.5%)
C17: Value | D17: =Inputs!F$12 -> 2025/26 | E17: =Inputs!G$12 -> 2026/27 | F17: =Inputs!H$12 -> 2027/28 | G17: =Inputs!I$12 -> 2028/29 | H17: =Inputs!J$12 -> 2029/30
A18: X value applied | C18: =IF(ISNUMBER(C7),C7,C6) -> -0.085
A19: Index of price path | D19: 1 | E19: =D19*(1+E$8)*(1-$C$18) -> 1.1067 | F19: =E19*(1+F$8)*(1-$C$18) -> 1.22478489 | G19: =F19*(1+G$8)*(1-$C$18) -> 1.355469438 | H19: =G19*(1+H$8)*(1-$C$18) -> 1.500098027
A20: Index of constant price growth | D20: 1 | E20: =D20*(1+E$5) -> 1 | F20: =E20*(1+F$5) -> 1 | G20: 1 | H20: 1
A21: Indexed maximum allowable revenue before tax | D21: 1 | E21: =E19*E20 -> 1.1067 | F21: =F19*F20 -> 1.22478489 | G21: =G19*G20 -> 1.355469438 | H21: =H19*H20 -> 1.500098027
A23: This data block calculates maximum allowable revenues for the regulatory period for the 2014/15 X value that has been applied. These
A24: Maximum allowable revenues are set PV equivalent to the corresponding maximum allowable revenues for the industry-wide X CPI - X revenues.
A25: Outputs
C26: Misc. | D26: =Inputs!F$12 -> 2025/26 | E26: =Inputs!G$12 -> 2026/27 | F26: =Inputs!H$12 -> 2027/28 | G26: =Inputs!I$12 -> 2028/29 | H26: =Inputs!J$12 -> 2029/30
A27: Indexed maximum allowable revenue before tax—industry wide X factor | D27: =D15 -> 1 | E27: =E15 -> 1.02 | F27: =F15 -> 1.0404 | G27: =G15 -> 1.061208 | H27: =H15 -> 1.08243216
A28: Indexed maximum allowable revenue before tax—applicable X factor | D28: =D21 -> 1 | E28: =E21 -> 1.1067 | F28: 1.22478489 | G28: 1.355469438 | H28: 1.500098027

Sheet MAR
A1: Maximum allowable revenue | H1: =EDB_Name -> Vector Lines
A2: Derivation of starting prices.
A3: Inputs
B4: Source | C4: Value | D4: =Inputs!F$12 -> 2025/26 | E4: =Inputs!G$12 -> 2026/27 | F4: =Inputs!H$12 -> 2027/28 | G4: =Inputs!I$12 -> 2028/29 | H4: =Inputs!J$12 -> 2029/30
A5: Year in regulatory period | B5: EDB data | D5: ='EDB data'!D22 -> 1 | E5: ='EDB data'!E22 -> 2 | F5: ='EDB data'!F22 -> 3 | G5: ='EDB data'!G22 -> 4 | H5: ='EDB data'!H22 -> 5
A6: Industry-wide X factor | B6: EDB data | C6: ='EDB data'!B14 -> 0
A7: Additional allowance in 1 April 2015 PV terms | B7: EDB data | C7: ='EDB data'!B42 -> 0
A8: Alternative X factor | B8: EDB data | C8: ='EDB data'!B43 -> -0.085
A9: Vanilla WACC (67th percentile) | B9: EDB data | C9: =WACC -> 0.0737
A10: TFrev | B10: TIMING | C10: =TIMING!C27 -> 1.029253619
A11: Constant price revenue growth 2015 | B11: EDB data | C11: ='EDB data'!B56 -> 0
A12: Constant price revenue growth 2016 | B12: EDB data | C12: ='EDB data'!B57 -> 0
A13: PV at 1 Apr 2015 of BBAR before tax over the regulatory period | B13: BBAR | C13: =BBAR!C57 -> 2955995.923
A14: Indexed maximum allowable revenue before tax—industry wide X factor | B14: REV | D14: =REV!D27 -> 1 | E14: =REV!E27 -> 1.02 | F14: =REV!F27 -> 1.0404 | G14: =REV!G27 -> 1.061208 | H14: =REV!H27 -> 1.08243216
A15: Indexed maximum allowable revenue before tax—applicable X factor | B15: REV | D15: =REV!D28 -> 1 | E15: =REV!E28 -> 1.1067 | F15: =REV!F28 -> 1.22478489 | G15: =REV!G28 -> 1.355469438 | H15: =REV!H28 -> 1.500098027
A16: Calculations
A17: ="CPI minus X revenues with industry-wide X factor of "&TEXT(C6,"#0.0%") -> CPI minus X revenues with industry-wide X factor of 0.0%
C18: PV at 1-Apr-25 | D18: =Inputs!F$12 -> 2025/26 | E18: =Inputs!G$12 -> 2026/27 | F18: =Inputs!H$12 -> 2027/28 | G18: =Inputs!I$12 -> 2028/29 | H18: =Inputs!J$12 -> 2029/30
A19: PV at 1 Apr 2015 of BBAR before tax over the regulatory period | C19: =C13 -> 2955995.923
A20: Additional allowance | C20: =C7 -> 0
A21: PV at 1 Apr 2015 of maximum allowable revenue before tax | C21: =C19+C20 -> 2955995.923
A22: Indexed maximum allowable revenue before tax | D22: =D14 -> 1 | E22: =E14 -> 1.02 | F22: =F14 -> 1.0404 | G22: =G14 -> 1.061208 | H22: =H14 -> 1.08243216
A23: Present value of indexed maximum allowable revenue for each year | D23: =D22/(1+$C$9)^D$5 -> 0.9313588526 | E23: =E22/(1+$C$9)^E$5 -> 0.8847778985 | F23: =F22/(1+$C$9)^F$5 -> 0.8405266429 | G23: =G22/(1+$C$9)^G$5 -> 0.7984885683 | H23: =H22/(1+$C$9)^H$5 -> 0.7585529847
A24: Present value of indexed revenue | C24: =SUM(D23:H23) -> 4.213704947
A25: Maximum allowable revenue before tax in first year of the regulatory period | C25: =C21/C24 -> 701519.4373
A26: Maximum allowable revenue before tax in year-end terms | D26: =$C25*D22 -> 701519.4373 | E26: =$C25*E22 -> 715549.8261 | F26: =$C25*F22 -> 729860.8226 | G26: =$C25*G22 -> 744458.0391 | H26: =$C25*H22 -> 759347.1998
A27: Maximum allowable revenue before tax in revenue-date terms | D27: =D26/$C$10 -> 681580.7339 | E27: =E26/$C$10 -> 695212.3486 | F27: =F26/$C$10 -> 709116.5956 | G27: =G26/$C$10 -> 723298.9275 | H27: =H26/$C$10 -> 737764.906
A28: PV at 1 Apr 2015 of maximum allowable revenue before tax in year-end terms in each year | D28: =D26/(1+$C$9)^D5 -> 653366.3382 | E28: =E26/(1+$C$9)^E5 -> 620688.8935 | F28: =F26/(1+$C$9)^F5 -> 589645.7776 | G28: =G26/(1+$C$9)^G5 -> 560155.2511 | H28: =H26/(1+$C$9)^H5 -> 532139.663
A29: PV at 1 Apr 2015 of maximum allowable revenue before tax | C29: =SUM(D28:H28) -> 2955995.923
A30: Error check for PV equivalence (should = 0) | C30: =C21-C29 -> 0
A31: ΔD | C31: =(1+$C$11)*(1+$C$12) -> 1
A32: ANR 2016 (industry-wide X-factor) | C32: =C29/C31 -> 2955995.923
A33: ="CPI minus X revenues with applicable X factor (" & IF(ISNUMBER(C8),"alternate X factor of " & TEXT(C8,"#0.0%"), "industry-wide X factor of " & TEXT(C6,"#0.0%"))&")" -> CPI minus X revenues with applicable X factor (alternate X factor of -8.5%)
C34: PV at 1-Apr-15 | D34: 2015/16 | E34: 2016/17 | F34: 2017/18 | G34: 2018/19 | H34: 2019/20
A35: PV at 1 Apr 2015 of BBAR before tax over the regulatory period | C35: =C13 -> 2955995.923
A36: Additional allowance | C36: =C7 -> 0
A37: PV at 1 Apr 2015 of maximum allowable revenue before tax | C37: =C35+C36 -> 2955995.923
A38: Indexed maximum allowable revenue before tax | D38: =D15 -> 1 | E38: =E15 -> 1.1067 | F38: =F15 -> 1.22478489 | G38: =G15 -> 1.355469438 | H38: =H15 -> 1.500098027
A39: Present value of indexed maximum allowable revenue for each year | D39: =D38/(1+$C$9)^D$5 -> 0.9313588526 | E39: =E38/(1+$C$9)^E$5 -> 0.9599840199 | F39: =F38/(1+$C$9)^F$5 -> 0.9894889772 | G39: =G38/(1+$C$9)^G$5 -> 1.019900765 | H39: =H38/(1+$C$9)^H$5 -> 1.051247254
A40: Present value of indexed revenue | C40: =SUM(D39:H39) -> 4.951979868
A41: Maximum allowable revenue before tax in first year of the regulatory period | C41: =C37/C40 -> 596932.1367
A42: Maximum allowable revenue before tax in year-end terms | D42: =$C41*D38 -> 596932.1367 | E42: 660624.7957 | F42: =$C41*F38 -> 731113.4614 | G42: =$C41*G38 -> 809123.2677 | H42: =$C41*H38 -> 895456.7204
A43: Maximum allowable revenue before tax in revenue-date terms | D43: =D42/$C$10 -> 579966.0311 | E43: =E42/$C$10 -> 641848.4066 | F43: =F42/$C$10 -> 710333.6316 | G43: 786126.2301 | H43: 870005.8989
A44: PV at 1 Apr 2015 of maximum allowable revenue before tax in year-end terms in each year | D44: =D42/(1+$C$9)^D$5 -> 555958.0299 | E44: =E42/(1+$C$9)^E$5 -> 573045.3122 | F44: =F42/(1+$C$9)^F$5 -> 590657.7694 | G44: =G42/(1+$C$9)^G$5 -> 608811.5427 | H44: =H42/(1+$C$9)^H$5 -> 627523.2693
A45: PV at 1 Apr 2015 of maximum allowable revenue before tax | C45: =SUM(D44:H44) -> 2955995.923
A46: Difference from PV equivalence (incentives etc.) | C46: =C37-C45 -> 0
A47: ΔD | C47: =(1+$C$11)*(1+$C$12) -> 1
A48: ANR 2016 (applicable X-factor) | C48: =D44/C47 -> 555958.0299
A50: This data block uses the applicable 2014/15 X factor to calculate the maximum allowable revenues for the regulatory period. These allowed
A51: revenues are PV-equivalent to the corresponding revenues calculated with the industry-wide X factor in the previous data block.
A52: Outputs
D53: =Inputs!F$12 -> 2025/26 | E53: =Inputs!G$12 -> 2026/27 | F53: =Inputs!H$12 -> 2027/28 | G53: =Inputs!I$12 -> 2028/29 | H53: =Inputs!J$12 -> 2029/30
A54: Maximum allowable revenue before tax in revenue-date terms for industry wide X factor | D54: =D27 -> 681580.7339 | E54: =E27 -> 695212.3486 | F54: 709116.5956 | G54: 723298.9275 | H54: 737764.906
A55: Maximum allowable revenue before tax in revenue-date terms for applicable X factor | D55: =D43 -> 579966.0311 | E55: =E43 -> 641848.4066 | F55: 710333.6316 | G55: 786126.2301 | H55: 870005.8989
A56: Starting price for industry-wide X factor | D56: =D27 -> 681580.7339
A57: Starting price for applicable X factor | D57: =D43 -> 579966.0311
A58: PV at 1 Apr 2015 of MAR before tax over the regulatory period (industry X ) | D58: =C21 -> 2955995.923
A59: PV at 1 Apr 2015 of MAR before tax over the regulatory period (Applicable X) | D59: =C37 -> 2955995.923
A60: ΔD | D60: =C47 -> 1
A61: ANR 2016 (applicable X-factor) | D61: =C48 -> 555958.0299
